Cogmind - Beta 14 @@@ ROGUE MODE // 2025.01.08 @ 22:10:18 Player: Dosh Result: Destroyed by B-99 Colossus with Multirail Performance ------------- Evolutions (9) 4500 Regions Visited (32) 6400 Robots Destroyed (420) 2100 Value Destroyed (22886) 22886 Prototype IDs (56) 1120 Alien Tech Used (0) 0 Bonus (10783) 10783 TOTAL SCORE: 47789 Bonus ------- High Alert Combat Kills 2208 Follower Combat Kills 3902 Entered Garrisons 2000 Used RIF Installer 5500 Aligned with FarCom 300 Friendly Fire -3127 Cogmind --------- Core Integrity 0/1600 Matter 101/300 Energy 50/100 System Corruption 13% Temperature Cool (0) Movement Core (50) Location -1/Access Parts ------- > --- POWER (3) -------- (None) > --- PROPULSION (8) --- (None) > --- UTILITY (12) ----- (None) > --- WEAPON (2) ------- (None) > --- INVENTORY (5) ---- Enhanced Nova Cannon Peak State ------------ > --- POWER ------------ Antimatter Reactor Light Quantum Reactor > --- PROPULSION ------- Heavy Treads Improved Heavy Treads Heavy Siege Treads > --- UTILITY ---------- Advanced Cooling System Huge Storage Unit Quantum Capacitor Centrium Light Armor Plating Advanced Force Field Relay Coupler [NC] Relay Coupler [Swarmer] Relay Coupler [Sentry] Relay Coupler [Specialist] Relay Coupler [Hunter] > --- WEAPON ----------- Cooled Plasma Cannon Advanced Remote Datajack > --- INVENTORY -------- Light Antimatter Reactor Biometal Medium Treads Advanced Cooling System Advanced Coolant Injector Long-range Terrain Scanner Cloak of Protection Improved Medium Armor Plating Layered Medium Armor Plating Advanced Force Field Hacking Suite Relay Coupler [NC] Relay Coupler [NC] Relay Coupler [Grunt] Relay Coupler [Grunt] Relay Coupler [Sentry] Relay Coupler [Sentry] Relay Coupler [Sentry] Relay Coupler [Sentry] Supersonic Drone Bay Compact HERF Cannon Nova Cannon Rocket Array Improved Remote Datajack Improved Remote Datajack [Rating: 138] Favorites ----------- Power Antimatter Reactor Engine Improved Ion Engine Power Core Reinforced Fission Core Reactor Antimatter Reactor Propulsion Light Treads Treads Light Treads Leg Centrium Leg Wheel Armored Huge Wheel Hover Unit Antigrav System Flight Unit Field Propulsion Array Utility Huge Storage Unit Device Cooling System Storage Huge Storage Unit Processor Modified TNC Hackware Relay Coupler [Sentry] Protection Hardened Medium Armor Plating Weapon Heavy Particle Cannon Energy Gun Pulse Rifle Energy Cannon Heavy Particle Cannon Ballistic Gun Assault Rifle Launcher Rocket Launcher Special Weapon Improved Remote Datajack Impact Weapon Mace Special Melee Weapon Improved Datajack Build | -11 -10 -10 -9 -9 -9 -8 -8 -8 -8 -8 -7 -7 -7 -7 -7 -7 -7 -7 -6 -6 -6 -6 -5 -5 -4 -4 -4 -4 -3 -3 -2 -1 ------- Run | Yrd Mat Min Mat Min Exi Min Mat Gar Mat Gar Fac Was Fac Gar Fac Gar Fac Gar Fac Was Fac Gar Fac Gar Fac Gar Fac Gar Res Gar Res Acc Slots Evolved 18 | . . . 2 . . . 2 . . . 2 . . . . . . . 2 . . . 2 . 2 . . . 2 . 2 2 Power 2 | . . . . . . . . . . . . . . . . . . . 1 . . . . . . . . . . . 1 . Propulsion 6 | . . . 1 . . . . . . . 1 . . . . . . . . . . . . . . . . . 2 . . 2 Utility 10 | . . . 1 . . . 2 . . . 1 . . . . . . . 1 . . . 2 . 2 . . . . . 1 . Weapon . | . . . . . . . . . . . . . . . . . . . . . . . . . . . . . . . . . Parts Attached 422 | 6 5 3 25 2 . . 18 21 23 22 5 20 7 4 13 27 10 26 27 6 9 12 3 17 9 26 2 20 13 10 9 22 Power 29 | 1 1 1 3 . . . 1 2 1 1 . 2 . . . 3 . . 2 . 1 . . 2 1 3 . 2 . 1 . 1 Engine 6 | 1 . 1 3 . . . . . . . . . . . . . . . . . 1 . . . . . . . . . . . Core 8 | . 1 . . . . . 1 2 1 1 . . . . . . . . . . . . . . . 1 . 1 . . . . Reactor 15 | . . . . . . . . . . . . 2 . . . 3 . . 2 . . . . 2 1 2 . 1 . 1 . 1 Propulsion 66 | 2 . 1 9 2 . . 4 3 5 2 2 3 . . . 2 . . . . 3 1 . 3 . 1 1 . 1 . 7 14 Treads 56 | 2 . 1 9 2 . . 4 3 5 1 1 3 . . . 2 . . . . 3 1 . 3 . 1 1 . 1 . 4 9 Leg 1 | . . . . . . . . . . . . . . . . . . . . . . . . . . . . . . . 1 . Wheel 2 | . . . . . . . . . . 1 1 . . . . . . . . . . . . . . . . . . . . . Hover 1 | . . . . . . . . . . . . . . . . . . . . . . . . . . . . . . . 1 . Flight 6 | . . . . . . . . . . . . . . . . . . . . . . . . . . . . . . . 1 5 Utility 173 | 1 3 . 7 . . . 7 8 11 7 1 11 3 2 3 9 6 14 11 1 3 5 3 9 6 16 1 10 9 3 2 1 Device 69 | . 2 . 3 . . . 4 4 4 3 1 6 1 . 2 5 2 6 7 . 2 1 2 3 3 4 1 . 2 1 . . Storage 6 | 1 1 . 1 . . . . 1 . . . . 1 . . . . . . . . . . . . . . . 1 . . . Processor 4 | . . . . . . . . . . . . . . . . . . . 1 . . . . . 1 . . . . . 1 1 Hackware 55 | . . . 1 . . . . . 2 3 . 1 1 2 1 3 4 6 2 . . 3 1 4 1 7 . 6 5 1 1 . Protection 39 | . . . 2 . . . 3 3 5 1 . 4 . . . 1 . 2 1 1 1 1 . 2 1 5 . 4 1 1 . . Artifact . | . . . . . . . . . . . . . . . . . . . . . . . . . . . . . . . . . Weapon 154 | 2 1 1 6 . . . 6 8 6 12 2 4 4 2 10 13 4 12 14 5 2 6 . 3 2 6 . 8 3 6 . 6 Energy Gun 5 | . 1 1 3 . . . . . . . . . . . . . . . . . . . . . . . . . . . . . Energy Cannon 86 | . . . 3 . . . 3 5 3 8 1 2 2 2 6 8 2 9 7 3 2 3 . . 1 5 . 6 2 3 . . Ballistic Gun 4 | 2 . . . . . . . . . . . . . . . . . . . . . . . . . . . . . 2 . . Ballistic Cannon . | . . . . . . . . . . . . . . . . . . . . . . . . . . . . . . . . . Launcher 21 | . . . . . . . 2 3 . . . . . . 1 3 . . 3 1 . . . 1 . . . . . 1 . 6 Special Weapon 36 | . . . . . . . . . 2 4 1 2 2 . 3 2 2 3 4 1 . 3 . 2 1 1 . 2 1 . . . Impact Weapon 1 | . . . . . . . . . 1 . . . . . . . . . . . . . . . . . . . . . . . Slashing Weapon . | . . . . . . . . . . . . . . . . . . . . . . . . . . . . . . . . . Piercing Weapon . | . . . . . . . . . . . . . . . . . . . . . . . . . . . . . . . . . Special Melee Weapon 1 | . . . . . . . 1 . . . . . . . . . . . . . . . . . . . . . . . . . Unidentified Prototypes 6 | . . . 1 . . . 1 . . . . . . . 1 . . . 1 . 1 . . . . . . . . . . 1 Parts Lost 85 | . 2 2 4 . . . 2 10 2 . 2 . . . . 2 . 3 1 . . . . 4 . 4 . 3 . 27 4 13 Power 9 | . 1 1 1 . . . . 1 . . . . . . . . . . . . . . . 1 . 1 . 1 . 2 . . Propulsion 23 | . . 1 1 . . . . 3 . . 1 . . . . . . . . . . . . 1 . . . . . 4 2 10 Utility 40 | . . . 1 . . . 2 5 1 . 1 . . . . 2 . 3 1 . . . . 2 . 2 . 2 . 14 2 2 Weapon 13 | . 1 . 1 . . . . 1 1 . . . . . . . . . . . . . . . . 1 . . . 7 . 1 Highest Loss Streak 27 | . 1 2 3 . . . 1 5 1 . 2 . . . . 1 . 2 1 . . . . 2 . 4 . 2 . 27 2 5 To Critical Strikes . | . . . . . . . . . . . . . . . . . . . . . . . . . . . . . . . . . Average Slot Usage (%) 86 | . 92 100 99 100 100 100 99 99 99 91 76 82 82 83 83 82 84 82 79 78 79 80 72 76 81 79 78 82 79 63 9 20 Engine 2 | . 2 13 10 11 11 11 5 . . . . . . . . . . . . . 2 6 5 1 . . . . . . . . Core 2 | . 10 . . . . . 3 8 9 9 7 2 . . . . . . . . . . . . . . . 3 . . . . Reactor 4 | . . . . . . . . . . . . 4 7 7 7 7 7 7 13 13 9 6 5 9 10 9 10 6 9 7 . . Treads 18 | . 28 28 33 33 33 33 27 26 26 13 5 8 15 15 15 15 15 15 13 13 12 13 11 11 10 10 10 10 14 10 1 12 Device 12 | . 9 14 11 11 11 11 16 20 12 14 13 14 15 16 19 20 15 15 5 . 4 3 9 7 19 14 15 15 13 7 . . Storage 7 | . 14 14 11 11 11 11 9 9 9 9 7 7 7 7 7 7 7 7 6 6 6 6 5 5 5 5 5 5 4 3 . . Hackware 13 | . . . 3 11 11 11 9 9 15 12 7 15 12 13 17 15 14 15 15 13 13 20 14 19 21 22 21 23 22 23 4 . Protection 5 | . . . 7 . . . 10 5 7 8 7 6 7 7 . 1 7 5 5 11 8 6 5 6 5 6 5 6 5 1 . . Energy Cannon 11 | . . . 13 22 22 22 17 17 14 14 14 13 12 13 12 14 9 11 11 11 13 11 5 5 3 5 5 5 4 3 . . Ballistic Gun 1 | . 23 14 1 . . . . . . . . . . . . . . . . . . . . . . . . . . . . . Special Weapon 1 | . . . . . . . . . 1 3 . 1 1 . 1 . 5 2 1 1 . 1 5 5 5 5 5 5 4 3 . . Peak Build Rating 138 | 6 10 10 21 21 23 23 33 44 40 50 54 71 72 73 74 80 76 80 92 90 92 92 103 106 119 117 114 121 138 134 48 94 Average Rating 64 | 4 8 8 18 21 21 23 28 37 38 44 49 62 68 71 72 74 74 76 88 86 86 88 99 99 115 113 113 115 134 103 14 73 On Entrance 61 | . 6 10 9 21 21 23 23 32 40 39 46 54 69 72 73 71 76 74 77 83 88 91 90 100 103 112 114 114 121 134 10 42 Naked Turns . | . . . . . . . . . . . . . . . . . . . . . . . . . . . . . . . . . Heaviest Build 166 | 12 34 31 68 61 61 61 76 123 123 129 131 131 127 127 123 130 124 135 157 146 151 151 146 148 148 157 157 166 156 158 1 12 Greatest Support 320 | 40 40 40 60 60 60 60 60 63 63 63 56 140 140 140 140 150 150 150 150 150 150 150 150 150 150 150 145 140 215 215 11 320 Greatest Overweight (x) 52 | . . 1 1 1 1 1 1 1 2 4 4 2 . . . . . . 1 . 1 1 . . . 1 1 1 . 52 . 3 Average Overweight (x) . | . . . . 1 1 1 1 . 1 3 2 . . . . . . . . . . . . . . . 1 1 . . . . Largest Inventory Capacity 25 | 8 15 15 20 20 20 20 20 25 25 25 25 25 25 25 25 25 25 25 25 25 25 25 25 25 25 25 25 25 25 25 5 5 Average Capacity 22 | 7 13 15 18 20 20 20 20 21 25 25 25 25 25 25 25 25 25 25 25 25 25 25 25 25 25 25 25 25 25 20 5 5 Most Carried 25 | 1 9 10 20 20 20 20 20 22 25 25 25 25 25 25 25 25 25 25 24 22 25 25 25 25 25 25 25 25 25 25 5 5 Average Carried 21 | . 5 9 15 19 19 20 19 19 23 24 24 23 22 22 24 24 24 24 22 21 23 24 22 22 24 24 25 23 23 19 4 4 Final Capacity 25 | 8 15 15 20 20 20 20 20 25 25 25 25 25 25 25 25 25 25 25 25 25 25 25 25 25 25 25 25 25 25 5 5 5 Final Carried 25 | 1 8 10 19 19 20 20 19 22 23 25 25 23 21 25 25 24 23 25 22 22 25 25 21 25 25 25 25 25 22 4 4 1 Class Distribution -------------------- 38% | Botlord-Mutant 30% | Bothacker-Mutant 21% | Scavenger-Mutant 8% | Mutant Dominant Class ---------------- Mutant | -10/Materials Mutant | -10/Mines Scavenger-Mutant | -9/Materials Scavenger-Mutant | -9/Mines Scavenger-Mutant | -9/Exiles Scavenger-Mutant | -8/Mines Scavenger-Mutant | -8/Materials Bothacker-Mutant | -8/Garrison Bothacker-Mutant | -8/Materials Bothacker-Mutant | -8/Garrison Bothacker-Mutant | -7/Factory Bothacker-Mutant | -7/Waste Bothacker-Mutant | -7/Factory Bothacker-Mutant | -7/Garrison Bothacker-Mutant | -7/Factory Botlord-Mutant | -7/Garrison Botlord-Mutant | -7/Factory Botlord-Mutant | -7/Garrison Botlord-Mutant | -6/Factory Bothacker-Mutant | -6/Waste Bothacker-Mutant | -6/Factory Botlord-Mutant | -6/Garrison Botlord-Mutant | -5/Factory Botlord-Mutant | -5/Garrison Botlord-Mutant | -4/Factory Botlord-Mutant | -4/Garrison Botlord-Mutant | -4/Factory Botlord-Mutant | -4/Garrison Botlord-Mutant | -3/Research Botlord-Mutant | -3/Garrison Mutant | -2/Research Mutant | -1/Access Resources | -11 -10 -10 -9 -9 -9 -8 -8 -8 -8 -8 -7 -7 -7 -7 -7 -7 -7 -7 -6 -6 -6 -6 -5 -5 -4 -4 -4 -4 -3 -3 -2 -1 ----------- Run | Yrd Mat Min Mat Min Exi Min Mat Gar Mat Gar Fac Was Fac Gar Fac Gar Fac Gar Fac Was Fac Gar Fac Gar Fac Gar Fac Gar Res Gar Res Acc Matter Collected 7528 | 115 415 89 348 30 . . 259 483 429 440 47 220 131 20 225 474 111 471 356 177 18 262 75 242 140 532 97 354 512 282 57 117 Remotely . | . . . . . . . . . . . . . . . . . . . . . . . . . . . . . . . . . Salvage Created 20285 | . 466 89 1148 370 . . 872 1003 978 829 122 1768 64 290 798 1460 63 1063 670 146 317 658 . 1777 791 970 68 1267 1071 695 . 472 Parts 890 | . 30 7 74 20 . . 53 67 41 47 6 34 5 14 43 62 5 41 42 7 7 20 . 59 34 38 2 40 41 22 . 29 Haulers Intercepted 21 | . 2 . 5 . . . 4 . 4 . . . 1 . 1 . . . 2 . 1 . . . . . . . . . . 1 Recyclers Shooed 13 | . 1 . 4 . . . 2 . 1 . . . . . 2 . . . 1 . . . . . 1 . . . 1 . . . Parts Field Recycled . | . . . . . . . . . . . . . . . . . . . . . . . . . . . . . . . . . Retrieved Matter . | . . . . . . . . . . . . . . . . . . . . . . . . . . . . . . . . . Parts Self-Destructed . | . . . . . . . . . . . . . . . . . . . . . . . . . . . . . . . . . Prevented . | . . . . . . . . . . . . . . . . . . . . . . . . . . . . . . . . . Kills | -11 -10 -10 -9 -9 -9 -8 -8 -8 -8 -8 -7 -7 -7 -7 -7 -7 -7 -7 -6 -6 -6 -6 -5 -5 -4 -4 -4 -4 -3 -3 -2 -1 ------- Run | Yrd Mat Min Mat Min Exi Min Mat Gar Mat Gar Fac Was Fac Gar Fac Gar Fac Gar Fac Was Fac Gar Fac Gar Fac Gar Fac Gar Res Gar Res Acc Combat Hostiles Destroyed 341 | . 10 2 25 9 . . 15 37 12 19 4 7 . 5 12 23 2 19 11 . 1 16 . 24 16 13 1 20 16 10 . 12 Melee 3 | . . . . . . . . . . 1 . . . . . 1 . . . . . . . . . . . . . . . 1 Guns 24 | . 10 2 12 . . . . . . . . . . . . . . . . . . . . . . . . . . . . . Cannons 227 | . . . 12 9 . . 11 16 12 16 3 5 . 5 12 9 2 16 3 . 1 16 . 17 15 9 1 14 15 8 . . AOE 63 | . . . . . . . 3 21 . . 1 . . . . 13 . . 8 . . . . 4 . . . . . 2 . 11 Classes Destroyed 20 | . 4 . 4 1 . . 1 4 . 1 . 2 . . 1 1 . . . . . . . . . . . 1 . . . . Worker 17 | . . . 1 . . . 3 . . . 1 . 2 . . . 1 . 1 . 5 . . . . . . . 1 . . 2 Builder 9 | . 1 . 1 . . . . . 1 . . . . . 1 . . . 2 . . . . . . . . . . . . 3 Hauler 21 | . 2 . 5 . . . 4 . 4 . . . 1 . 1 . . . 2 . 1 . . . . . . . . . . 1 Recycler 6 | . . . . . . . 1 . 1 . . . . . 1 . . . 1 . 1 . . . . . . . . . . 1 Mechanic 1 | . . . . . . . . . . . . . . . . . . . 1 . . . . . . . . . . . . . Operator 3 | . . . 2 . . . . . . . . . . . . . . 1 . . . . . . . . . . . . . . Watcher 7 | . . . 1 . . . . . 2 . . . . . 1 . . 1 . . . . . . . . . . . . . 2 Swarmer 93 | . 3 . 7 . . . 3 12 . 4 4 . . . . 6 2 3 8 . . 12 . 8 5 . . 1 1 2 . 12 Cutter 9 | . . . . . . . . 2 . . . . . . . 3 . 4 . . . . . . . . . . . . . . Grunt 109 | . 7 2 11 7 . . 8 7 10 9 . . . 2 5 5 . 2 2 . . 6 . 9 1 3 . 5 5 3 . . Brawler 15 | . . . . 2 . . . . . . . . . 2 2 1 . 4 . . . . . . 1 . . 1 . 2 . . Duelist 9 | . . . . . . . . . . 1 . . . . 1 1 . . . . 1 . . . 1 1 . 2 . 1 . . Sentry 35 | . . . 7 . . . 4 8 2 5 . . . 1 . 4 . 2 . . . . . 2 . . . . . . . . Demolisher 1 | . . . . . . . . . . . . 1 . . . . . . . . . . . . . . . . . . . . Specialist 3 | . . . . . . . . 3 . . . . . . . . . . . . . . . . . . . . . . . . Hunter 26 | . . . . . . . . 2 . . . . . . 1 . . 4 1 . . . . 3 . 5 1 5 4 . . . Programmer 40 | . . . . . . . . 3 . . . . . . 3 4 . 2 1 . . . . 3 8 3 . 4 6 3 . . Behemoth 3 | . . . . . . . . . . . . . . . . 1 . . . . . . . . . 2 . . . . . . Compactor 6 | . . . . . . . . . . . . 6 . . . . . . . . . . . . . . . . . . . . Striker 2 | . . . . . . . . . . . . . . . . . . . . . . . . . . . . 2 . . . . Surgeon 1 | . . . . . . . . . . . . . . . 1 . . . . . . . . . . . . . . . . . Martyr 4 | . . . . . . . . . . . . 2 . . . . . . . 2 . . . . . . . . . . . . Best Kill Streak 16 | . 4 1 3 3 . . 3 8 2 3 4 1 2 2 3 12 2 5 6 . 6 3 . 7 5 3 1 4 4 4 . 16 Combat Bots Only 12 | . 3 1 3 3 . . 3 8 2 3 4 1 . 2 3 12 2 5 4 . 1 3 . 7 5 3 1 4 4 4 . 8 Max Kills in Single Turn 6 | . 2 1 1 2 . . 3 3 1 1 1 1 1 1 2 3 1 2 6 1 5 2 . 5 1 1 1 1 1 1 . 5 Gunslinging . | . . . . . . . . . . . . . . . . . . . . . . . . . . . . . . . . . Exploded 4 | . . . . . . . 2 3 . . 1 . . . . 3 . . 4 . . . . 4 . . . . . 1 . 4 Melee 1 | . . . . . . . . . . 1 . . . . . 1 . . . . . . . . . . . . . . . 1 Uniques/NPCs Destroyed . | . . . . . . . . . . . . . . . . . . . . . . . . . . . . . . . . . Combat | -11 -10 -10 -9 -9 -9 -8 -8 -8 -8 -8 -7 -7 -7 -7 -7 -7 -7 -7 -6 -6 -6 -6 -5 -5 -4 -4 -4 -4 -3 -3 -2 -1 -------- Run | Yrd Mat Min Mat Min Exi Min Mat Gar Mat Gar Fac Was Fac Gar Fac Gar Fac Gar Fac Was Fac Gar Fac Gar Fac Gar Fac Gar Res Gar Res Acc Hostile Shots Fired 2507 | . 80 12 89 10 . . 78 200 53 55 23 . 18 35 49 108 19 74 70 . 68 114 4 118 54 143 . 147 152 221 62 451 Missed 830 | . 28 4 25 4 . . 27 53 13 14 3 . 9 13 12 27 8 23 25 . 34 30 1 31 17 49 . 44 51 80 28 177 Damage Taken 26265 | . 634 115 825 75 . . 732 1422 611 449 293 . 130 214 493 1100 133 544 658 16 315 894 62 1209 382 1425 91 1794 1016 3270 826 6537 Core 4667 | . 96 31 86 . . . 107 232 25 89 . . . 26 78 95 . 49 40 . . 65 . 40 10 101 . 188 75 1151 479 1604 Absorbed by Shields 5740 | . . . . . . . 99 762 118 193 54 . 50 61 89 372 . 222 9 . 61 348 26 439 271 416 96 959 898 173 . 24 Reduced by Siege Mode 833 | . . . . . . . . . . . . . . 13 22 109 . 38 . . . 2 . 61 20 50 . 213 62 243 . . Ignored by Resistances 435 | . . . . . . . . . . . . . . . . . 12 23 . . . . . . 66 228 . 106 . . . . Regen/Repaired (Parts) 3445 | . . . 40 . . . . . 371 . . 324 61 50 58 489 95 . 325 240 841 . . . 117 . . . 434 . . . Core Remaining (%) 63 | 100 . 49 . . . 78 . . . 17 . . . . . . . 64 . . . 87 . 96 . . . 74 . 5 66 . Volleys Fired 1704 | . 68 7 76 15 . . 58 85 69 77 14 60 6 17 40 82 29 97 39 14 13 84 9 166 79 130 12 139 138 70 . 11 Largest 2 | . 2 2 2 2 . . 2 2 2 2 2 2 2 2 2 2 2 2 2 2 2 2 1 2 1 1 1 1 1 2 . 1 Hottest 173 | . 60 60 150 150 . . 150 150 150 170 170 170 170 170 170 170 170 173 170 170 170 70 5 105 35 88 35 94 113 120 . 52 Shots Fired 2405 | . 122 14 151 30 . . 102 156 124 120 27 114 7 36 74 158 31 153 56 19 25 125 9 167 81 134 12 140 138 69 . 11 Gun 217 | . 122 14 79 . . . . . . . . . . . . . . . . . . . . . . . . . . 2 . . Cannon 1885 | . . . 72 30 . . 94 133 114 99 27 108 2 36 69 148 13 142 42 10 25 110 . 152 69 109 5 126 103 47 . . Launcher 55 | . . . . . . . 8 23 . . . . . . . 8 . . 3 . . . . 1 . . . . . 1 . 11 Special 248 | . . . . . . . . . 10 21 . 6 5 . 5 2 18 11 11 9 . 15 9 14 12 25 7 14 35 19 . . Kinetic 140 | . 121 7 10 . . . . . . . . . . . . . . . . . . . . . . . . . . 2 . . Thermal 1940 | . 1 7 141 30 . . 94 133 114 99 27 108 2 36 69 148 13 140 42 10 25 110 . 152 69 105 5 110 103 47 . . Explosive 50 | . . . . . . . 8 23 . . . . . . . 8 . . 3 . . . . 1 . . . . . 1 . 6 Electromagnetic 27 | . . . . . . . . . . . . . . . . . . 2 . . . . . . . 4 . 16 . . . 5 Robot Hit Streak 28 | . 8 5 26 6 . . 12 11 9 15 8 16 14 13 12 28 7 12 4 10 11 10 4 23 13 23 21 13 11 11 . 1 Robot Miss Streak 6 | . 6 2 5 2 . . 6 3 4 2 4 3 1 1 4 3 1 3 3 3 3 3 2 3 4 2 1 2 2 2 . 3 Penetration Max . | . . . . . . . . . . . . . . . . . . . . . . . . . . . . . . . . . Secondary Targets 3 | . 1 . 2 . . . . . . . . . . . . . . . . . . . . . . . . . . . . . Max Gunslinging Chain 1 | . 1 . 1 . . . . . . . . . . . . . . . . . . . . . . . . . . . . . Capacitor 610 | . . . . . . . . . . . . . . . . . . . . . . . . 151 69 109 5 126 103 47 . . Shots Hit Robots 1494 | . 76 11 108 15 . . 55 78 70 60 12 90 5 19 47 103 21 73 30 15 12 59 6 119 62 92 9 101 93 51 . 2 Core Hits 671 | . 26 4 41 10 . . 32 59 26 20 4 20 3 9 22 80 3 28 38 7 6 21 . 57 23 22 1 28 27 27 1 26 Critical Kills 13 | . . . . . . . 1 . . 2 . 2 . . . . . 2 1 . . . . . . 2 . 2 1 . . . Critical Parts Destroyed . | . . . . . . . . . . . . . . . . . . . . . . . . . . . . . . . . . Critical Strikes 17 | . . . 3 . . . 1 . . 2 . 2 . . . . . 2 1 . . . . . . 2 . 3 1 . . . Burn 3 | . . . 3 . . . . . . . . . . . . . . . . . . . . . . . . . . . . . Meltdown 13 | . . . . . . . 1 . . 2 . 2 . . . . . 2 1 . . . . . . 2 . 2 1 . . . Corrupt 1 | . . . . . . . . . . . . . . . . . . . . . . . . . . . . 1 . . . . Melee Attacks 2 | . . . . . . . . . 2 . . . . . . . . . . . . . . . . . . . . . . . Impact 2 | . . . . . . . . . 2 . . . . . . . . . . . . . . . . . . . . . . . Slashing . | . . . . . . . . . . . . . . . . . . . . . . . . . . . . . . . . . Piercing . | . . . . . . . . . . . . . . . . . . . . . . . . . . . . . . . . . Sneak Attacks 1 | . . . . . . . . . 1 . . . . . . . . . . . . . . . . . . . . . . . Combat Hostiles . | . . . . . . . . . . . . . . . . . . . . . . . . . . . . . . . . . Follow-up Attacks . | . . . . . . . . . . . . . . . . . . . . . . . . . . . . . . . . . Damage Inflicted 48035 | . 956 135 2309 443 . 21 2010 3510 1754 1386 550 2869 85 619 1603 4735 214 2192 1537 309 1022 1578 . 4108 1891 2502 66 3280 2466 1643 41 2201 Guns 2206 | . 936 133 1084 . . . . . . . . . . . . . . . . . . . . . . . . . . 53 . . Cannons 36836 | . . . 1150 420 . . 1428 1836 1631 1365 425 2869 30 619 1523 3264 182 2192 859 309 367 1578 . 3736 1855 2502 66 3130 2336 1164 . . Explosions 8063 | . . . . . . . 545 1647 . . 125 . . . . 1439 . . 557 . 624 . . 372 . . . 150 . 414 . 2190 Melee 76 | . . . . . . . . . 76 . . . . . . . . . . . . . . . . . . . . . . . Ramming 854 | . 20 2 75 23 . 21 37 27 47 21 . . 55 . 80 32 32 . 121 . 31 . . . 36 . . . 130 12 41 11 Kinetic 1155 | . 926 66 110 . . . . . . . . . . . . . . . . . . . . . . . . . . 53 . . Thermal 37413 | . 10 67 2124 420 . . 1428 1836 1631 1365 425 2869 30 619 1523 3264 182 2192 859 309 367 1578 . 3736 1855 2345 66 2813 2336 1164 . . Explosive 7508 | . . . . . . . 545 1647 . . 125 . . . . 1439 . . 557 . 624 . . 372 . . . . . 414 . 1785 Electromagnetic 1029 | . . . . . . . . . . . . . . . . . . . . . . . . . . 157 . 467 . . . 405 Impact 76 | . . . . . . . . . 76 . . . . . . . . . . . . . . . . . . . . . . . Slashing . | . . . . . . . . . . . . . . . . . . . . . . . . . . . . . . . . . Piercing . | . . . . . . . . . . . . . . . . . . . . . . . . . . . . . . . . . Highest Corruption 27 | . 2 2 . . . . . 5 5 5 . . 5 5 5 5 5 14 . . . . . . 6 6 6 8 5 27 5 13 Average Corruption 5 | . 1 2 . . . . . 4 5 5 . . 3 5 5 5 5 8 . . . . . . 4 6 6 6 2 9 2 7 Corruption Purged . | . . . . . . . . . . . . . . . . . . . . . . . . . . . . . . . . . Corruption Blocked . | . . . . . . . . . . . . . . . . . . . . . . . . . . . . . . . . . Effects 466 | . 16 5 . . . . . 48 54 50 . . 7 14 26 32 9 40 . . . . . . 15 39 8 53 13 24 1 12 Message Errors 101 | . 2 . . . . . . 3 16 14 . . 2 3 8 7 2 8 . . . . . . 5 8 4 11 3 4 . 1 Matter Fused 117 | . 4 1 . . . . . 17 10 11 . . 3 3 7 5 2 12 . . . . . . 2 11 2 14 3 5 . 5 Heat Flow Errors 67 | . 6 2 . . . . . 8 9 5 . . 1 2 1 7 2 5 . . . . . . 1 4 . 8 3 2 . 1 Energy Discharges 42 | . 1 2 . . . . . 4 7 2 . . . . 1 5 . 4 . . . . . . 2 4 . 6 2 1 . 1 Parts Rejected 7 | . . . . . . . . . 2 . . . . . . . . 2 . . . . . . . 1 . 1 . . 1 . Parts Fused 5 | . . . . . . . . . 1 . . . . . . . 1 . . . . . . . . 1 . 2 . . . . Data Loss (minor) 58 | . 1 . . . . . . 9 5 10 . . 1 2 4 2 1 3 . . . . . . 1 6 2 6 2 3 . . Data Loss (major) 18 | . 1 . . . . . . 4 . 2 . . . . . 2 1 1 . . . . . . 1 . . 3 . 2 . 1 Misfires 24 | . 1 . . . . . . 2 3 1 . . . 3 2 3 . 2 . . . . . . 2 4 . 1 . . . . Alerts 9 | . . . . . . . . . . 4 . . . . 1 . . 1 . . . . . . 1 . . 1 . 1 . . Misdirections 6 | . . . . . . . . . . . . . . . . . . . . . . . . . . . . . . 3 . 3 Weapon Failures 12 | . . . . . . . . 1 1 1 . . . 1 2 1 . 2 . . . . . . . . . . . 3 . . Overload Shots 3 | . . . . . . . . . . . . . . . . . . . . . . . . 3 . . . . . . . . Overflow Damage 1192 | . . . 48 . . . 20 90 100 . 46 21 . . 62 79 23 28 8 . 111 60 . 38 74 44 . 73 58 3 . 206 Projectiles 703 | . . . 48 . . . 20 45 46 . 30 21 . . 52 59 6 28 . . 13 60 . 38 64 44 . 73 53 3 . . Explosions 385 | . . . . . . . . 45 . . 16 . . . . 20 . . . . 98 . . . . . . . . . . 206 Melee 104 | . . . . . . . . . 54 . . . . . 10 . 17 . 8 . . . . . 10 . . . 5 . . . Knockbacks 5 | . . . 1 . . . 2 . . . . . . . 1 . . . . . . . . . . . . . 1 . . . Impact 5 | . . . 1 . . . 2 . . . . . . . 1 . . . . . . . . . . . . . 1 . . . Kinetic . | . . . . . . . . . . . . . . . . . . . . . . . . . . . . . . . . . Secondary . | . . . . . . . . . . . . . . . . . . . . . . . . . . . . . . . . . Self-Inflicted Damage 594 | . . . . . . . 77 80 . 8 60 . . . . 104 . . 46 . . . . 51 . . . 22 . 56 19 71 Shots 22 | . . . . . . . 3 3 . . 1 . . . . 7 . . 2 . . . . 2 . . . 1 . 2 . 1 Rammed 85 | . 4 1 8 2 . 3 8 5 4 3 . . 1 . 10 1 1 . 5 . 1 . . . 2 . . . 7 2 7 10 Targets Rammed 91 | . 4 1 8 2 . 3 8 5 4 4 . . 2 . 10 2 1 . 5 . 2 . . . 2 . . . 8 2 7 11 Kicked . | . . . . . . . . . . . . . . . . . . . . . . . . . . . . . . . . . Crushed 6 | . . . . . . . . . . 1 . . 1 . . 1 . . . . 1 . . . . . . . 1 . . 1 Highest Temperature 481 | . 246 109 253 84 . . 399 234 440 194 279 153 111 169 291 305 180 336 481 324 290 192 . 202 105 264 . 253 276 413 . 94 Average Temperature 82 | . 80 37 57 31 . . 127 115 147 58 92 56 43 57 39 38 87 66 167 145 102 42 . 69 31 82 . 88 89 88 . 68 Received Heat Transfer 4643 | . 321 72 339 42 . . 356 275 279 145 . . 16 56 220 96 36 31 100 6 44 133 22 280 4 166 . 51 93 1034 27 399 Effects 21 | . . . . . . . 3 . 3 . . . . . . . . 1 6 1 2 . . . . 3 . . . 2 . . Shutdowns 5 | . . . . . . . . . . . . . . . . . . . 4 . . . . . . . . . . 1 . . Energy Bleed 6 | . . . . . . . 1 . 1 . . . . . . . . 1 1 . 1 . . . . 1 . . . . . . Interference 6 | . . . . . . . . . 2 . . . . . . . . . . . 1 . . . . 2 . . . 1 . . Matter Decay 3 | . . . . . . . 2 . . . . . . . . . . . . 1 . . . . . . . . . . . . Damage (minor) 1 | . . . . . . . . . . . . . . . . . . . 1 . . . . . . . . . . . . . Siege Activations 41 | . . . . . . . . . . . . 1 . 2 2 4 . 4 . 1 . 1 . 6 5 4 . 6 4 1 . . Total Turns 828 | . . . . . . . . . . . . 36 . 42 92 114 . 135 . 35 . 6 . 48 45 61 . 107 87 20 . . Longest Duration 80 | . . . . . . . . . . . . 36 . 30 77 53 . 80 . 35 . 6 . 14 19 24 . 24 26 20 . . Robots Corrupted 7 | . . . . . . . . . . . . . . . 1 . 1 . . . . . . . . 1 . 4 . . . . Combat Hostiles 5 | . . . . . . . . . . . . . . . . . . . . . . . . . . 1 . 4 . . . . Parts Fried 7 | . . . . . . . . . . . . . . . . . 2 . . . . . . . . 1 . 3 . . . 1 Impact Corruptions 7 | . . . . . . . . . 1 . . . . . 2 . 1 . 1 . . . . . 1 . . . 1 . . . Robots Melted 22 | . . . 1 . . . 1 . . 2 . 2 . . . . . 3 1 . . . . 5 1 3 . 2 1 . . . Combat Hostiles 19 | . . . 1 . . . 1 . . 2 . 2 . . . . . 3 . . . . . 3 1 3 . 2 1 . . . Parts Melted 145 | . . . 16 1 . . 3 4 4 7 1 3 1 2 6 2 . 5 3 . 2 5 . 17 19 5 1 16 17 5 . . Heat Transferred 51525 | . 25 150 4071 592 . . 2072 2516 2405 1590 518 3478 37 740 1739 3811 222 2590 1036 370 444 2321 . 5700 2600 3400 100 4100 3350 1548 . . Parts Sabotaged . | . . . . . . . . . . . . . . . . . . . . . . . . . . . . . . . . . Parts Stolen . | . . . . . . . . . . . . . . . . . . . . . . . . . . . . . . . . . Parts Stripped . | . . . . . . . . . . . . . . . . . . . . . . . . . . . . . . . . . Power Chain Reactions 1 | . . . . . . . . . . . . . . . . . . . . . . . . . . . . 1 . . . . Alert | -11 -10 -10 -9 -9 -9 -8 -8 -8 -8 -8 -7 -7 -7 -7 -7 -7 -7 -7 -6 -6 -6 -6 -5 -5 -4 -4 -4 -4 -3 -3 -2 -1 ------- Run | Yrd Mat Min Mat Min Exi Min Mat Gar Mat Gar Fac Was Fac Gar Fac Gar Fac Gar Fac Was Fac Gar Fac Gar Fac Gar Fac Gar Res Gar Res Acc Peak Influence 1396 | . 218 98 535 323 . . 221 1336 718 1396 882 345 114 279 237 941 526 764 607 227 343 912 633 853 636 925 485 817 547 499 196 677 Initial 732 | . . 68 37 208 . . . 40 651 52 732 308 . 49 146 98 493 117 401 212 . 94 478 222 447 64 485 . 459 103 130 111 Average 348 | . 98 94 296 150 . . 91 805 201 706 824 239 66 172 141 641 256 359 324 122 185 484 443 572 315 534 255 456 392 209 140 259 Maximum Alert Level 4 | . 1 . 2 1 . . 1 4 3 4 3 1 . 1 1 3 2 3 2 1 1 3 2 3 2 3 2 3 2 2 . 2 Low Security (%) 41 | 100 93 100 28 65 . 100 90 16 80 6 . 50 100 53 73 10 60 25 13 50 34 14 . . 16 21 59 24 17 43 100 45 Level 1 22 | . 6 . 43 34 . . 9 4 1 26 . 49 . 46 26 6 12 26 51 49 65 23 49 15 51 10 . 9 19 51 . 39 Level 2 22 | . . . 27 . . . . 8 12 23 . . . . . 39 26 42 34 . . 51 50 56 32 39 40 56 62 5 . 14 Level 3 10 | . . . . . . . . 44 5 21 100 . . . . 44 . 6 . . . 11 . 27 . 28 . 10 . . . . Level 4 2 | . . . . . . . . 26 . 22 . . . . . . . . . . . . . . . . . . . . . . Level 5 . | . . . . . . . . . . . . . . . . . . . . . . . . . . . . . . . . . High Security . | . . . . . . . . . . . . . . . . . . . . . . . . . . . . . . . . . Max Security . | . . . . . . . . . . . . . . . . . . . . . . . . . . . . . . . . . Squads Dispatched 46 | . 1 . 2 . . . 4 . 1 . . . 1 . 6 . 1 . 7 . 5 . 2 . 4 . 2 . 5 . 1 4 Investigation 9 | . 1 . . . . . . . . . . . . . 1 . 1 . 2 . 1 . 1 . . . . . . . 1 1 Extermination 10 | . . . . . . . . . . . . . 1 . 2 . . . 2 . 1 . . . 1 . 1 . 2 . . . Reinforcement 19 | . . . 2 . . . 4 . 1 . . . . . 1 . . . 3 . 1 . 1 . . . 1 . 3 . . 2 Assault 1 | . . . . . . . . . . . . . . . . . . . . . 1 . . . . . . . . . . . Garrison 7 | . . . . . . . . . . . . . . . 2 . . . . . 1 . . . 3 . . . . . . 1 Intercept . | . . . . . . . . . . . . . . . . . . . . . . . . . . . . . . . . . Searches Triggered . | . . . . . . . . . . . . . . . . . . . . . . . . . . . . . . . . . Construction Impeded 2 | . . . . . . . 1 . . . . . . . . . . . . . . . . . . . . . . . . 1 Haulers Reinforced 3 | . . . . . . . . . . . . . . . 1 . . . . . . . . . . . . . 2 . . . Active Scanning Responses . | . . . . . . . . . . . . . . . . . . . . . . . . . . . . . . . . . Cargo Convoy Interrupts . | . . . . . . . . . . . . . . . . . . . . . . . . . . . . . . . . . Stealth | -11 -10 -10 -9 -9 -9 -8 -8 -8 -8 -8 -7 -7 -7 -7 -7 -7 -7 -7 -6 -6 -6 -6 -5 -5 -4 -4 -4 -4 -3 -3 -2 -1 --------- Run | Yrd Mat Min Mat Min Exi Min Mat Gar Mat Gar Fac Was Fac Gar Fac Gar Fac Gar Fac Was Fac Gar Fac Gar Fac Gar Fac Gar Res Gar Res Acc Distress Signals 17 | . 3 . 2 . . . 1 . 5 . . . . . 1 . . . . . 1 . 1 . . . . . . . . 3 Communications Jammed 325 | . . . . . . . . . . . . . . . . . 4 . 143 . 63 . 1 . 2 . . . 93 2 17 . Distress Signals 318 | . . . . . . . . . . . . . . . . . 4 . 139 . 62 . . . 2 . . . 92 2 17 . Times Spotted 708 | . 24 2 44 9 . . 25 33 27 29 5 5 5 4 19 20 13 31 29 6 20 40 15 34 21 37 2 31 56 35 15 72 Peak Tracking Total 29 | . 3 2 7 3 . . 4 7 4 6 4 2 1 2 3 5 5 6 6 3 7 6 6 10 5 9 2 4 6 10 12 29 Tactical Retreats 50 | . 3 . 5 . . . . 2 5 3 . . . . 1 . . 1 . . 1 7 . 1 . 1 . . 4 2 2 12 Traps | -11 -10 -10 -9 -9 -9 -8 -8 -8 -8 -8 -7 -7 -7 -7 -7 -7 -7 -7 -6 -6 -6 -6 -5 -5 -4 -4 -4 -4 -3 -3 -2 -1 ------- Run | Yrd Mat Min Mat Min Exi Min Mat Gar Mat Gar Fac Was Fac Gar Fac Gar Fac Gar Fac Was Fac Gar Fac Gar Fac Gar Fac Gar Res Gar Res Acc Traps Triggered 56 | . 2 . . . . . . 11 . 10 1 . 4 . . . . 1 1 . . 4 . 1 . 6 . 13 . . . 2 Indirectly . | . . . . . . . . . . . . . . . . . . . . . . . . . . . . . . . . . Trap Hack Attempts 16 | . . . . . . . 16 . . . . . . . . . . . . . . . . . . . . . . . . . Triggered . | . . . . . . . . . . . . . . . . . . . . . . . . . . . . . . . . . Disarmed . | . . . . . . . . . . . . . . . . . . . . . . . . . . . . . . . . . Reprogrammed 3 | . . . . . . . 3 . . . . . . . . . . . . . . . . . . . . . . . . . Reused 3 | . . . . . . . 2 . . . . . . . . . . . . . . . . . . . . . . 1 . . Traps Extracted . | . . . . . . . . . . . . . . . . . . . . . . . . . . . . . . . . . Installed 5 | . . . . . . . . . . . . . . . . . . . . . . . . . . . . . . 5 . . Triggered 3 | . . . . . . . 2 . . . . . . . . . . . . . . . . . . . . . . 1 . . Machines | -11 -10 -10 -9 -9 -9 -8 -8 -8 -8 -8 -7 -7 -7 -7 -7 -7 -7 -7 -6 -6 -6 -6 -5 -5 -4 -4 -4 -4 -3 -3 -2 -1 ---------- Run | Yrd Mat Min Mat Min Exi Min Mat Gar Mat Gar Fac Was Fac Gar Fac Gar Fac Gar Fac Was Fac Gar Fac Gar Fac Gar Fac Gar Res Gar Res Acc Machines Disabled 84 | . . . 2 . . . 5 7 3 7 3 . 1 3 2 5 . 7 6 . 6 4 4 4 1 5 . 4 2 3 . . Max in Single Turn 4 | . . . 1 . . . 3 2 1 1 1 . . 1 1 1 . 1 4 . 4 1 . 1 . 1 . 1 1 1 . . Garrison Access 2 | . . . . . . . . . . . 1 . . . . . . . . . 1 . . . . . . . . . . . Garrison Relay 31 | . . . . . . . . 3 . 6 . . . 2 . 2 . 4 . . . 4 . 3 . 3 . 3 . 1 . . Phase Generator 1 | . . . . . . . . . . . . . . . . . . . . . . . . . . . . . . 1 . . Energy Cycler 1 | . . . . . . . . . . . . . . . . . . . . . . . . . . . . . . . . 1 Machines Repaired . | . . . . . . . . . . . . . . . . . . . . . . . . . . . . . . . . . Machines Dismantled . | . . . . . . . . . . . . . . . . . . . . . . . . . . . . . . . . . Machines Sabotaged . | . . . . . . . . . . . . . . . . . . . . . . . . . . . . . . . . . Overloaded Fab Kills . | . . . . . . . . . . . . . . . . . . . . . . . . . . . . . . . . . Hacking | -11 -10 -10 -9 -9 -9 -8 -8 -8 -8 -8 -7 -7 -7 -7 -7 -7 -7 -7 -6 -6 -6 -6 -5 -5 -4 -4 -4 -4 -3 -3 -2 -1 --------- Run | Yrd Mat Min Mat Min Exi Min Mat Gar Mat Gar Fac Was Fac Gar Fac Gar Fac Gar Fac Was Fac Gar Fac Gar Fac Gar Fac Gar Res Gar Res Acc Machines Accessed 89 | . 8 . 9 . 2 . 9 2 4 3 1 . 3 1 6 1 6 2 7 . 6 2 2 3 2 1 2 1 3 . 2 1 Terminals 61 | . 7 . 8 . . . 8 2 2 3 . . 2 1 2 1 4 2 5 . 2 2 1 3 1 1 1 1 1 . 1 . Fabricators 5 | . . . . . . . . . . . . . . . 2 . . . 2 . . . . . . . . . 1 . . . Repair Stations 8 | . . . 1 . . . . . 1 . . . . . 1 . 1 . . . 3 . . . . . . . . . . 1 Recycling Units 1 | . 1 . . . . . . . . . . . . . . . . . . . . . . . . . . . . . . . Scanalyzers . | . . . . . . . . . . . . . . . . . . . . . . . . . . . . . . . . . Garrison Access 12 | . . . . . . . 1 . 1 . 1 . 1 . 1 . 1 . . . 1 . 1 . 1 . 1 . 1 . 1 . Total Hacks 222 | . 22 . 29 . 2 . 31 4 15 5 2 . 6 2 14 2 17 4 13 . 14 4 5 6 2 2 4 3 6 . 6 2 Successful 110 | . 11 . 14 . 2 . 18 1 8 3 2 . 2 1 8 1 8 1 4 . 9 2 1 2 2 1 3 1 5 . . . Failed 111 | . 10 . 15 . . . 13 3 7 2 . . 4 1 6 1 9 3 9 . 5 2 4 4 . 1 1 2 1 . 6 2 Catastrophic 22 | . . . . . . . 2 3 . . . . 1 . 1 . 2 2 3 . 2 1 1 1 . . 1 . . . 2 . Database Lockouts 1 | . 1 . . . . . . . . . . . . . . . . . . . . . . . . . . . . . . . Manual 104 | . 15 . 25 . 1 . 19 . 5 . . . 4 . 4 . 9 2 2 . 2 1 4 1 . . 2 2 1 . 5 . Terminals 166 | . 21 . 27 . . . 30 4 8 5 . . 5 2 5 2 14 4 10 . 3 4 2 6 1 2 2 3 2 . 4 . Fabricators 10 | . . . . . . . . . . . . . . . 5 . . . 3 . . . . . . . . . 2 . . . Repair Stations 23 | . . . 2 . . . . . 6 . . . . . 2 . 2 . . . 9 . . . . . . . . . . 2 Recycling Units 1 | . 1 . . . . . . . . . . . . . . . . . . . . . . . . . . . . . . . Scanalyzers . | . . . . . . . . . . . . . . . . . . . . . . . . . . . . . . . . . Garrison Access 20 | . . . . . . . 1 . 1 . 2 . 1 . 2 . 1 . . . 2 . 3 . 1 . 2 . 2 . 2 . Terminal Hacks 40 | . 4 . 6 . 2 . 7 1 1 3 . . . 1 . 1 3 1 2 . . 2 . 2 1 1 . 1 1 . . . Record 1 | . . . . . 1 . . . . . . . . . . . . . . . . . . . . . . . . . . . Robot Schematic 1 | . 1 . . . . . . . . . . . . . . . . . . . . . . . . . . . . . . . Robot Analysis 5 | . 1 . 3 . . . . . . . . . . . . . 1 . . . . . . . . . . . . . . . Prototype ID Bank 5 | . 1 . 3 . . . 1 . . . . . . . . . . . . . . . . . . . . . . . . . Open Door 1 | . . . . . . . . . . 1 . . . . . . . . . . . . . . . . . . . . . . Branch Access Points 2 | . . . . . . . . . . . . . . . . . . . . . . . . . 1 . . . 1 . . . Emergency Access Points 6 | . . . . . . . . 1 . 1 . . . . . . . 1 . . . 1 . 1 . . . 1 . . . . Terminal Index 1 | . . . . . . . 1 . . . . . . . . . . . . . . . . . . . . . . . . . Unreport Threat 6 | . . . . . . . 3 . 1 . . . . . . . 1 . 1 . . . . . . . . . . . . . Patrol Status 1 | . . . . . . . . . . . . . . . . . 1 . . . . . . . . . . . . . . . Recall Investigation 1 | . . . . . . . . . . . . . . . . . . . 1 . . . . . . . . . . . . . Recall Reinforcements 1 | . . . . . . . 1 . . . . . . . . . . . . . . . . . . . . . . . . . Hauler Manifests 1 | . . . . . . . 1 . . . . . . . . . . . . . . . . . . . . . . . . . Registered Prototypes 1 | . 1 . . . . . . . . . . . . . . . . . . . . . . . . . . . . . . . Garrison Registry 4 | . . . . . . . . . . . . . . 1 . 1 . . . . . . . 1 . 1 . . . . . . Patrol Navigation 1 | . . . . . . . . . . 1 . . . . . . . . . . . . . . . . . . . . . . Security Stations 1 | . . . . . . . . . . . . . . . . . . . . . . 1 . . . . . . . . . . Derelict Proto ID Bank 1 | . . . . . 1 . . . . . . . . . . . . . . . . . . . . . . . . . . . Fabricator Hacks 7 | . . . . . . . . . . . . . . . 3 . . . 2 . . . . . . . . . 2 . . . Network Status 1 | . . . . . . . . . . . . . . . 1 . . . . . . . . . . . . . . . . . Load Schematic 3 | . . . . . . . . . . . . . . . 1 . . . 1 . . . . . . . . . 1 . . . Build 3 | . . . . . . . . . . . . . . . 1 . . . 1 . . . . . . . . . 1 . . . Repair Station Hacks 17 | . . . 2 . . . . . 5 . . . . . 2 . 2 . . . 6 . . . . . . . . . . . Scan Component 9 | . . . 1 . . . . . 3 . . . . . 1 . 1 . . . 3 . . . . . . . . . . . Repair 8 | . . . 1 . . . . . 2 . . . . . 1 . 1 . . . 3 . . . . . . . . . . . Recycling Unit Hacks . | . . . . . . . . . . . . . . . . . . . . . . . . . . . . . . . . . Scanalyzer . | . . . . . . . . . . . . . . . . . . . . . . . . . . . . . . . . . Garrison Access Hacks 15 | . . . . . . . 1 . 1 . 2 . 1 . 1 . 1 . . . 2 . 1 . 1 . 2 . 2 . . . Unlock Access 10 | . . . . . . . 1 . 1 . . . 1 . 1 . 1 . . . 1 . 1 . 1 . 1 . 1 . . . Seal Access 1 | . . . . . . . . . . . 1 . . . . . . . . . . . . . . . . . . . . . Coupler Status 4 | . . . . . . . . . . . 1 . . . . . . . . . 1 . . . . . 1 . 1 . . . Unauthorized Hacks 31 | . 7 . 6 . . . 10 . 1 . . . 1 . 2 . 2 . . . 1 . . . . . 1 . . . . . Terminals 29 | . 6 . 6 . . . 10 . 1 . . . 1 . 1 . 2 . . . 1 . . . . . 1 . . . . . Track 1 | . . . . . . . . . . . . . . . . . . . . . 1 . . . . . . . . . . . Assimilate 1 | . . . . . . . 1 . . . . . . . . . . . . . . . . . . . . . . . . . Botnet 5 | . 1 . 1 . . . 2 . . . . . . . . . 1 . . . . . . . . . . . . . . . Operators 6 | . . . . . . . 1 . 1 . . . 1 . 1 . 1 . . . . . . . . . 1 . . . . . Skim 16 | . 5 . 5 . . . 6 . . . . . . . . . . . . . . . . . . . . . . . . . Fabricators . | . . . . . . . . . . . . . . . . . . . . . . . . . . . . . . . . . Repair Stations . | . . . . . . . . . . . . . . . . . . . . . . . . . . . . . . . . . Recycling Units 1 | . 1 . . . . . . . . . . . . . . . . . . . . . . . . . . . . . . . Tunnel 1 | . 1 . . . . . . . . . . . . . . . . . . . . . . . . . . . . . . . Scanalyzers . | . . . . . . . . . . . . . . . . . . . . . . . . . . . . . . . . . Garrison Access 1 | . . . . . . . . . . . . . . . 1 . . . . . . . . . . . . . . . . . Restock 1 | . . . . . . . . . . . . . . . 1 . . . . . . . . . . . . . . . . . Data Cores Recovered . | . . . . . . . . . . . . . . . . . . . . . . . . . . . . . . . . . Used . | . . . . . . . . . . . . . . . . . . . . . . . . . . . . . . . . . Hacking Detections 67 | . 6 . 7 . . . 6 2 3 1 . . 2 1 4 1 5 2 7 . 4 2 2 2 2 1 2 1 1 . 2 1 Full Trace Events 8 | . . . . . . . . . 1 . . . . . 1 . 1 . 2 . . . 1 . . . . . . . 1 1 Feedback Events 1 | . . . . . . . . . . . . . . . . . . . . . . . . . . . . . . . 1 . Corruption 1 | . . . . . . . . . . . . . . . . . . . . . . . . . . . . . . . 1 . Feedback Blocked . | . . . . . . . . . . . . . . . . . . . . . . . . . . . . . . . . . Robot Schematics Acquired 1 | . 1 . . . . . . . . . . . . . . . . . . . . . . . . . . . . . . . Robots Built 3 | . . . . . . . . . . . . . . . 1 . . . 1 . . . . . . . . . 1 . . . Authchips 1 | . . . . . . . . . . . . . . . . . . . . . . . . . . . . . 1 . . . Time 161 | . . . . . . . . . . . . . . . 81 . . . 40 . . . . . . . . . 40 . . . Total Robot Build Rating 3 | . . . . . . . . . . . . . . . 1 . . . 1 . . . . . . . . . 1 . . . Part Schematics Acquired . | . . . . . . . . . . . . . . . . . . . . . . . . . . . . . . . . . Parts Built . | . . . . . . . . . . . . . . . . . . . . . . . . . . . . . . . . . Authchips . | . . . . . . . . . . . . . . . . . . . . . . . . . . . . . . . . . Time . | . . . . . . . . . . . . . . . . . . . . . . . . . . . . . . . . . Total Part Build Rating . | . . . . . . . . . . . . . . . . . . . . . . . . . . . . . . . . . Parts Repaired 8 | . . . 1 . . . . . 2 . . . . . 1 . 1 . . . 3 . . . . . . . . . . . Time 376 | . . . 32 . . . . . 70 . . . . . 50 . 50 . . . 174 . . . . . . . . . . . Parts Recycled . | . . . . . . . . . . . . . . . . . . . . . . . . . . . . . . . . . Recycled Matter . | . . . . . . . . . . . . . . . . . . . . . . . . . . . . . . . . . Retrieved Matter . | . . . . . . . . . . . . . . . . . . . . . . . . . . . . . . . . . Retrieved Components . | . . . . . . . . . . . . . . . . . . . . . . . . . . . . . . . . . Parts Scanalyzed . | . . . . . . . . . . . . . . . . . . . . . . . . . . . . . . . . . Part Schematics Acquired . | . . . . . . . . . . . . . . . . . . . . . . . . . . . . . . . . . Parts Damaged . | . . . . . . . . . . . . . . . . . . . . . . . . . . . . . . . . . Bothacking | -11 -10 -10 -9 -9 -9 -8 -8 -8 -8 -8 -7 -7 -7 -7 -7 -7 -7 -7 -6 -6 -6 -6 -5 -5 -4 -4 -4 -4 -3 -3 -2 -1 ------------ Run | Yrd Mat Min Mat Min Exi Min Mat Gar Mat Gar Fac Was Fac Gar Fac Gar Fac Gar Fac Was Fac Gar Fac Gar Fac Gar Fac Gar Res Gar Res Acc Used RIF Installer 11 | . . . . . . . . 1 . 1 . . . 1 . 1 . 1 . . . 2 . 1 . 1 . 1 . 1 . . Coupler Efficiency 1 | . . . . . . . . . . . . . . . . . . . . . . . . . . . . 1 . . . . Hotswap 1 | . . . . . . . . . . . . . . . . . . 1 . . . . . . . . . . . . . . Threat Obfuscator 1 | . . . . . . . . . . . . . . . . . . . . . . 1 . . . . . . . . . . Signal Jammer 1 | . . . . . . . . . . 1 . . . . . . . . . . . . . . . . . . . . . . Zone Cloak 2 | . . . . . . . . . . . . . . . . . . . . . . 1 . 1 . . . . . . . . Robot Detection 1 | . . . . . . . . . . . . . . . . . . . . . . . . . . 1 . . . . . . Watcher Feeds 1 | . . . . . . . . . . . . . . . . 1 . . . . . . . . . . . . . . . . Autooverride 1 | . . . . . . . . . . . . . . 1 . . . . . . . . . . . . . . . . . . Autoassimilate 1 | . . . . . . . . . . . . . . . . . . . . . . . . . . . . . . 1 . . Robots Hacked 143 | . . . . . . . . . 3 2 . 6 4 . 2 3 9 7 6 6 . 12 7 9 6 17 2 11 22 9 . . Non-combat 21 | . . . . . . . . . 3 . . . 1 . 1 . 3 1 2 . . . 1 . 2 . 1 . 6 . . . Combat 122 | . . . . . . . . . . 2 . 6 3 . 1 3 6 6 4 6 . 12 6 9 4 17 1 11 16 9 . . Autooverrided 20 | . . . . . . . . . . . . . . . . 2 . 2 . . . 1 2 2 . 3 . 2 5 1 . . Robot Hacks Applied 162 | . . . . . . . . . 6 2 . 6 4 . 5 2 13 9 7 7 . 11 7 8 10 15 6 10 26 8 . . parse_system 7 | . . . . . . . . . . . . . . . . . . . . 1 . 1 1 1 . 1 . 1 1 . . . find_fabricator 2 | . . . . . . . . . . . . . . . . . . . 1 . . . . . . . . . 1 . . . drop_inventory 6 | . . . . . . . . . . . . . . . . . 2 . . . . . . . . . . . 4 . . . purge_threat 24 | . . . . . . . . . 4 . . . . . 1 . 2 4 2 . . . 2 . 3 . 3 . 3 . . . find_terminals 1 | . . . . . . . . . . . . . . . . . . . . . . . . . . . 1 . . . . . block_reporting 3 | . . . . . . . . . . . . . . . 1 . 1 . . . . . . . 1 . . . . . . . map_route 1 | . . . . . . . . . . . . . . . . . . . . . . . . . . . . . 1 . . . ignore_targets 12 | . . . . . . . . . . . . 6 . . . . . . . 6 . . . . . . . . . . . . find_garrison 4 | . . . . . . . . . . . . . 1 . 1 . 1 . . . . . . . . . . . 1 . . . scatter_targeting 1 | . . . . . . . . . . . . . . . . . . . . . . . . . . 1 . . . . . . amplify_resonance 20 | . . . . . . . . . 1 . . . . . . . . . . . . 4 . 2 . 4 . 2 6 1 . . wipe_record 1 | . . . . . . . . . . . . . . . . . . . . . . . . . . . . . 1 . . . disable_weapons 3 | . . . . . . . . . . . . . . . . 2 . . . . . . . . 1 . . . . . . . reboot_system 2 | . . . . . . . . . . . . . . . . . . 1 . . . . . . . . . 1 . . . . go_dormant 1 | . . . . . . . . . . . . . . . . . . . . . . . . . . 1 . . . . . . overwrite_iff 32 | . . . . . . . . . . 1 . . . . . . 3 1 1 . . 4 3 3 2 5 . 2 4 3 . . streamctrl_high 1 | . . . . . . . . . . . . . 1 . . . . . . . . . . . . . . . . . . . formatsys_low 9 | . . . . . . . . . 1 . . . . . 1 . 1 1 . . . . 1 . 2 . 1 . 1 . . . formatsys_high 32 | . . . . . . . . . . 1 . . 2 . 1 . 3 2 3 . . 2 . 2 1 3 1 4 3 4 . . Relay Couplers Released 138 | . . . . . . . . 12 . 20 2 . . 9 1 10 . 18 . . 1 19 . 10 4 14 . 15 . 3 . . Machine Destruction 129 | . . . . . . . . 12 . 20 2 . . 9 . 10 . 14 . . 1 19 . 10 . 14 . 15 . 3 . . Programmers 9 | . . . . . . . . . . . . . . . 1 . . 4 . . . . . . 4 . . . . . . . Attached 51 | . . . . . . . . . 2 3 . 1 1 1 1 3 4 6 2 . . 3 1 4 1 7 . 6 3 1 1 . Fabnet Peak Effective % . | . . . . . . . . . . . . . . . . . . . . . . . . . . . . . . . . . Robots Rewired 32 | . . . . . . . . 3 . 12 . . . . . 3 . . . . . 2 . . . 4 . . . 8 . . Allies Hacked 8 | . . . . . . . . . . . . . . . 1 . . 2 . . . . . 1 . . . . 1 3 . . Hacks Repelled . | . . . . . . . . . . . . . . . . . . . . . . . . . . . . . . . . . Allies | -11 -10 -10 -9 -9 -9 -8 -8 -8 -8 -8 -7 -7 -7 -7 -7 -7 -7 -7 -6 -6 -6 -6 -5 -5 -4 -4 -4 -4 -3 -3 -2 -1 -------- Run | Yrd Mat Min Mat Min Exi Min Mat Gar Mat Gar Fac Was Fac Gar Fac Gar Fac Gar Fac Was Fac Gar Fac Gar Fac Gar Fac Gar Res Gar Res Acc Total Allies 170 | . . 3 . 3 . . . 3 1 14 . 19 3 . 3 5 7 6 5 18 . 9 6 7 5 15 2 7 13 16 . . Largest Group 21 | . . 3 2 3 3 3 3 1 3 11 . 18 16 3 3 5 8 8 6 21 19 2 3 2 3 6 6 8 3 12 . . Highest-Rated Group 760 | . . 78 47 40 40 40 40 5 15 184 . 444 374 80 86 152 215 215 180 760 660 198 198 85 115 392 277 377 134 704 . . Highest-Rated Ally 148 | . . 31 31 16 16 16 16 5 10 39 . 35 32 28 32 43 43 43 41 50 46 99 99 85 56 148 56 58 68 64 . . Total Orders 35 | . . . . . . . 1 . 6 5 . . . . 2 9 1 4 4 . . . 1 . 1 . . . 1 . . . STAY 13 | . . . . . . . 1 . 3 2 . . . . 1 3 . 2 1 . . . . . . . . . . . . . ROAM 1 | . . . . . . . . . . 1 . . . . . . . . . . . . . . . . . . . . . . FOLLOW 12 | . . . . . . . . . 3 2 . . . . 1 3 . 2 1 . . . . . . . . . . . . . AID 8 | . . . . . . . . . . . . . . . . 3 1 . 2 . . . . . 1 . . . 1 . . . EXPLORE 1 | . . . . . . . . . . . . . . . . . . . . . . . 1 . . . . . . . . . Ally Attacks 824 | . . . 10 9 . . 42 . 17 62 . 38 25 . 2 1 29 43 44 55 78 23 42 17 13 80 31 70 35 58 . . Total Damage 20658 | . . . 107 111 . . 458 . 120 1042 . 613 326 . 136 38 619 1100 1240 2848 1712 433 1709 384 176 1827 412 1803 1187 2257 . . Kills 137 | . . . 3 1 . . 3 . 2 19 . . 2 . 1 . 7 12 16 6 13 4 9 1 1 15 1 10 3 8 . . Allies Corrupted 5 | . . . . . . . . . . . . . 1 . 1 . . . . . . . 1 . . . . . 1 1 . . Allies Melted 3 | . . . 1 . . . . . . 2 . . . . . . . . . . . . . . . . . . . . . . Intel | -11 -10 -10 -9 -9 -9 -8 -8 -8 -8 -8 -7 -7 -7 -7 -7 -7 -7 -7 -6 -6 -6 -6 -5 -5 -4 -4 -4 -4 -3 -3 -2 -1 ------- Run | Yrd Mat Min Mat Min Exi Min Mat Gar Mat Gar Fac Was Fac Gar Fac Gar Fac Gar Fac Was Fac Gar Fac Gar Fac Gar Fac Gar Res Gar Res Acc Robot Analysis Total 5 | . 1 . 3 . . . . . . . . . . . . . 1 . . . . . . . . . . . . . . . Derelict Logs Recovered 4 | . . 1 . 3 . . . . . . . . . . . . . . . . . . . . . . . . . . . . Drone Launches 1 | . . . . . . . . . . . . . . . . . . . . . . . 1 . . . . . . . . . Drone Recoveries 1 | . . . . . . . . . . . . . . . . . . . . . . . 1 . . . . . . . . . Exploration | -11 -10 -10 -9 -9 -9 -8 -8 -8 -8 -8 -7 -7 -7 -7 -7 -7 -7 -7 -6 -6 -6 -6 -5 -5 -4 -4 -4 -4 -3 -3 -2 -1 ------------- Run | Yrd Mat Min Mat Min Exi Min Mat Gar Mat Gar Fac Was Fac Gar Fac Gar Fac Gar Fac Was Fac Gar Fac Gar Fac Gar Fac Gar Res Gar Res Acc Turns Passed 33810 | 64 1158 361 1876 1477 532 1141 1880 1999 2097 1913 279 813 517 404 1042 1416 535 1446 1267 814 953 1231 209 1219 899 1478 438 1950 1001 577 150 674 Spaces Moved 15143 | 37 575 207 689 585 221 472 658 695 612 924 156 346 303 186 482 628 290 675 668 295 477 577 78 591 246 571 167 651 419 349 271 1042 Core 1238 | 4 . . . . . . . . . . . . . . . . . . . . . . . . . . . . . 156 189 889 Treads 12584 | 33 575 207 689 585 221 472 658 695 612 138 . 185 303 186 482 628 290 675 668 295 477 577 78 591 246 571 167 651 419 193 . 17 Legs . | . . . . . . . . . . . . . . . . . . . . . . . . . . . . . . . . . Wheels 1103 | . . . . . . . . . . 786 156 161 . . . . . . . . . . . . . . . . . . . . Hover 5 | . . . . . . . . . . . . . . . . . . . . . . . . . . . . . . . 5 . Flight 213 | . . . . . . . . . . . . . . . . . . . . . . . . . . . . . . . 77 136 Fastest Speed 31 | 50 160 160 160 240 240 240 240 163 243 145 130 130 160 160 160 160 160 160 160 160 160 160 160 160 160 160 240 255 166 50 40 31 Average Speed 176 | 148 160 160 205 240 240 240 240 240 243 165 142 146 160 160 160 160 160 160 161 160 162 169 160 160 160 212 249 255 166 125 47 52 Slowest Speed 2650 | 160 160 240 240 240 240 240 240 243 323 243 160 240 160 160 160 160 160 160 240 160 240 240 160 160 160 240 255 255 166 2650 60 200 Overloaded Moves . | . . . . . . . . . . . . . . . . . . . . . . . . . . . . . . . . . Propulsion Burnouts . | . . . . . . . . . . . . . . . . . . . . . . . . . . . . . . . . . Robots Hopped 14 | . . . . . . . . . . . . . . . . . . . . . . . . . . . . . . . 4 10 Cave-ins Triggered . | . . . . . . . . . . . . . . . . . . . . . . . . . . . . . . . . . Exploration Rate (%) 50 | 5 93 55 79 98 60 99 58 81 29 92 5 91 11 38 16 64 19 91 27 90 23 74 14 73 10 63 6 93 26 41 11 31 Regions Visited 32 Branch Regions 4 Pre-discovered Areas 7 | . 1 . 2 2 1 . 1 . . . . . . . . . . . . . . . . . . . . . . . . . Known Exits Taken 13 | . . 1 1 . . 1 1 . 1 . . . 1 . 1 . 1 . . . 1 . 1 . 1 . 1 . 1 . . . Unknown Exits Taken 5 | 1 1 . . 1 1 . . . . . . . . . . . . . . . . . . . . . . . . . 1 . Scrap Searched 2 | . . . . 1 . 1 . . . . . . . . . . . . . . . . . . . . . . . . . . Spaces Dug 66 | . . . . . . . 6 . 8 . 1 . . . 1 20 4 . . . 4 . . 3 1 . 2 . 10 . . 6 Terrain Destroyed 588 | . . . 15 13 . . 100 66 39 . 31 11 1 . 16 28 7 . 112 . 34 . . 6 15 1 3 17 19 3 . 51 Melee 1 | . . . . . . . . . 1 . . . . . . . . . . . . . . . . . . . . . . . Projectile 197 | . . . 15 13 . . 27 1 38 . 6 11 1 . 16 . 7 . 13 . 7 . . 3 15 1 3 . 19 1 . . AOE 390 | . . . . . . . 73 65 . . 25 . . . . 28 . . 99 . 27 . . 3 . . . 17 . 2 . 51 Terrain Rammed . | . . . . . . . . . . . . . . . . . . . . . . . . . . . . . . . . . Walls Destroyed . | . . . . . . . . . . . . . . . . . . . . . . . . . . . . . . . . . Machines Disabled . | . . . . . . . . . . . . . . . . . . . . . . . . . . . . . . . . . Actions | -11 -10 -10 -9 -9 -9 -8 -8 -8 -8 -8 -7 -7 -7 -7 -7 -7 -7 -7 -6 -6 -6 -6 -5 -5 -4 -4 -4 -4 -3 -3 -2 -1 --------- Run | Yrd Mat Min Mat Min Exi Min Mat Gar Mat Gar Fac Was Fac Gar Fac Gar Fac Gar Fac Was Fac Gar Fac Gar Fac Gar Fac Gar Res Gar Res Acc Total 20469 | 43 689 221 995 627 225 477 848 861 1088 1193 186 549 328 261 678 879 335 890 795 620 631 714 157 849 748 835 186 934 713 482 286 1146 Wait 2553 | . 28 2 158 22 . 3 75 13 367 79 7 94 7 43 118 79 4 70 47 304 120 24 68 55 399 66 3 95 127 29 . 47 Move 15091 | 36 574 206 688 584 220 471 658 694 611 923 156 345 303 185 481 627 289 674 668 294 477 576 77 590 246 570 167 650 418 348 263 1022 Hop 14 | . . . . . . . . . . . . . . . . . . . . . . . . . . . . . . . 4 10 Pick Up 179 | 1 7 2 20 . 3 . 5 12 7 8 1 6 1 6 3 15 1 11 3 2 3 7 . 13 4 16 . 9 4 5 1 3 Fast Attach 107 | 6 4 1 4 . . . 3 3 4 3 2 7 . 2 2 9 . 9 1 . 5 . . 5 3 3 2 2 2 3 7 15 Attach 82 | . 1 1 5 . . . 4 9 4 4 1 6 2 . . 2 1 4 4 1 1 2 1 4 2 6 . 3 1 4 2 7 Detach 52 | . 2 . 1 . . . . 2 1 7 1 6 . . 1 5 . 2 3 . 3 1 . 1 2 2 . . . 3 2 7 Swap 233 | . . 1 16 2 . . 11 9 15 15 2 7 5 2 11 16 9 13 22 5 3 10 2 8 4 17 . 15 10 3 . . Drop 185 | . 1 . 19 2 2 . 10 4 4 8 1 18 2 6 12 24 1 8 2 . 4 4 . 6 5 13 2 5 4 5 1 12 Fire 1704 | . 68 7 76 15 . . 58 85 69 77 14 60 6 17 40 82 29 97 39 14 13 84 9 166 79 130 12 139 138 70 . 11 Melee 2 | . . . . . . . . . 2 . . . . . . . . . . . . . . . . . . . . . . . Ram 12 | . . . . . . . . . . 3 . . . . . . . . . . . . . . . . . . . 2 6 1 Kick . | . . . . . . . . . . . . . . . . . . . . . . . . . . . . . . . . . Crush 78 | . 4 1 8 2 . 3 8 5 4 1 . . 2 . 10 2 1 . 5 . 2 . . . 2 . . . 8 . . 10 Escape Stasis 63 | . . . . . . . . 16 . 28 . . . . . . . . . . . . . . . 4 . 14 . . . 1 Rewire 93 | . . . . . . . . 9 . 37 1 . . . . 18 . 2 1 . . 6 . 1 2 8 . 2 1 5 . . Trap 21 | . . . . . . . 16 . . . . . . . . . . . . . . . . . . . . . . 5 . . Miscellaneous . | . . . . . . . . . . . . . . . . . . . . . . . . . . . . . . . . . Route ------- -11/Scrapyard -10/Materials (discovered 6 exits: *Mat x3 / [*Min x2] / [Sub]) -10/Mines -9/Materials (discovered 7 exits: *Mat x3 / *Min x2 / *Sto x2) -9/Mines (discovered 3 exits: *Mat x2 / *Exi) -9/Exiles -8/Mines (discovered 2 exits: *Mat x2) -8/Materials (discovered 4 exits: *Fac x3 / Gar) -8/Garrison (discovered 4 exits: *Fac x3 / *Mat) -8/Materials -8/Garrison (discovered 3 exits: *Fac x3) -7/Factory -7/Waste -7/Factory -7/Garrison (discovered 3 exits: *Fac x3) -7/Factory -7/Garrison (discovered 4 exits: *Fac x3 / *Fac) -7/Factory -7/Garrison (discovered 3 exits: *Fac x3) -6/Factory (discovered 3 exits: *Fac / Ext x2) -6/Waste -6/Factory -6/Garrison (discovered 3 exits: *Fac x3) -5/Factory -5/Garrison (discovered 3 exits: *Fac x3) -4/Factory (discovered 4 exits: Upp x2 / *Arm / Gar) -4/Garrison (discovered 3 exits: *Fac x3) -4/Factory (discovered 2 exits: *Upp / Gar) -4/Garrison (discovered 3 exits: *Res x3) -3/Research (discovered 3 exits: Tes x2 / Gar) -3/Garrison -2/Research -1/Access History --------- Turn | Location | Event 36 | -11/Scrapyard | Discovered new exit (range 13) 65 | -11/Scrapyard | Entered Materials 313 | -10/Materials | Build established: Mutant 421 | -10/Materials | Discovered new exit (range 13) 528 | -10/Materials | Discovered new exit (range 6) 600 | -10/Materials | Discovered new exit (range 13) 750 | -10/Materials | Discovered new exit (range 5) 828 | -10/Materials | Discovered new exit (range 10) 937 | -10/Materials | Discovered new exit (range 14) 981 | -10/Materials | Learned location of 3 exits from Materials 1014 | -10/Materials | Identified exit to Materials 1022 | -10/Materials | Central database locked down 1039 | -10/Materials | Loaded intel: 18 trap records 1054 | -10/Materials | Learned Materials trap positions 1073 | -10/Materials | Learned 2 Materials zone layouts 1096 | -10/Materials | Learned Storage terminal intel 1223 | -10/Materials | Entered Mines 1258 | -10/Mines | Core integrity fell below 50% 1302 | -10/Mines | Received a Mining Laser from a helpful Derelict 1520 | -10/Mines | Discovered exit to Materials (range 13) 1584 | -10/Mines | Entered Materials 1584 | -9/Materials | Accompanied by 3 allies 1584 | -9/Materials | Evolved 2 slots: Propulsion x1, Utility x1 1585 | -9/Materials | Identified exit to Mines 1586 | -9/Materials | Identified exit to Storage 1586 | -9/Materials | Identified exit to Materials 1586 | -9/Materials | Discovered exit to Storage (range 14) 1588 | -9/Materials | Loaded intel: 25 trap records 1589 | -9/Materials | Led the pair of lost Derelicts to an unsafe place 1800 | -9/Materials | Lost 3 parts (1p1n1w) 2335 | -9/Materials | Build established: Scavenger-Mutant 2600 | -9/Materials | Discovered exit to Materials (range 15) 3060 | -9/Materials | Learned location of Mines (-8) 3129 | -9/Materials | Learned 4 Materials zone layouts 3189 | -9/Materials | Learned Storage stockpile data 3305 | -9/Materials | Learned location of Mines (-9) 3350 | -9/Materials | Learned 2 Materials zone layouts 3417 | -9/Materials | Repaired Imp. Ion Engine 3438 | -9/Materials | Learned Storage terminal intel 3460 | -9/Materials | Entered Mines 3730 | -9/Mines | Deemed a non-threat by the Exiles lab entrance 3733 | -9/Mines | Discovered new exit (range 5) 3805 | -9/Mines | Received a Rocket Launcher from a helpful Derelict 3883 | -9/Mines | Learned location of Storage (-9) 4322 | -9/Mines | Found DCF Scrap (13 items) 4423 | -9/Mines | Assisted by bots powering up and referring to "LRC-V3" 4475 | -9/Mines | Learned 2 Materials zone layouts 4641 | -9/Mines | Learned Materials trap positions 4937 | -9/Mines | Entered Exiles 4937 | -9/Exiles | Accompanied by 3 allies 4997 | -9/Exiles | Met 8R-AWN 5036 | -9/Exiles | Met EX-HEX 5108 | -9/Exiles | Met EX-BIN 5139 | -9/Exiles | Aligned with FarCom system 5141 | -9/Exiles | Given EX-Vault access code 5201 | -9/Exiles | Opened EX-Vault 5213 | -9/Exiles | Found Modified TNC 5225 | -9/Exiles | Found Cloak of Protection 5238 | -9/Exiles | Found Supersonic Drone Bay 5292 | -9/Exiles | Warned to stay clear of 0b10 Research branches 5364 | -9/Exiles | Met EX-DEC 5373 | -9/Exiles | Learned location of Zion (-6) 5448 | -9/Exiles | Discovered new exit (range 11) 5469 | -9/Exiles | Stole three prototypes: Modified TNC, Cloak of Protection, Supersonic Drone Bay 5469 | -9/Exiles | Entered Mines 5469 | -8/Mines | Accompanied by 3 allies 5820 | -8/Mines | Discovered exit to Materials (range 9) 6610 | -8/Mines | Entered Materials 6610 | -8/Materials | Accompanied by 3 allies 6610 | -8/Materials | Evolved 2 slots: Utility x2 6611 | -8/Materials | Identified exit to Factory 6612 | -8/Materials | Loaded intel: 9 trap records 7384 | -8/Materials | Discovered exit to Factory (range 5) 8133 | -8/Materials | Discovered exit to Factory (range 13) 8206 | -8/Materials | Learned location of 1 exit from Lower Caves 8296 | -8/Materials | Learned Storage stockpile data 8490 | -8/Materials | Identified exit to Garrison 8490 | -8/Materials | Entered Garrison 8526 | -8/Garrison | Installed Relay Interface Framework 8552 | -8/Garrison | Triggered checkpoint 8785 | -8/Garrison | Garrison Relay disabled 8826 | -8/Garrison | Triggered checkpoint 8867 | -8/Garrison | Destroyed 8 combat bots 8905 | -8/Garrison | Triggered checkpoint 8927 | -8/Garrison | Triggered checkpoint 8951 | -8/Garrison | Destroyed 8 combat bots 8961 | -8/Garrison | Triggered checkpoint 9158 | -8/Garrison | Core integrity fell below 50% 9207 | -8/Garrison | Lost 5 parts (1p3n1u) 9316 | -8/Garrison | Discovered exit to Factory (range 13) 9356 | -8/Garrison | Triggered checkpoint 9400 | -8/Garrison | Garrison Relay disabled 9664 | -8/Garrison | Triggered checkpoint 9715 | -8/Garrison | Build established: Bothacker-Mutant 9767 | -8/Garrison | Garrison Relay disabled 9860 | -8/Garrison | Discovered exit to Factory (range 3) 9936 | -8/Garrison | Triggered checkpoint 9998 | -8/Garrison | Destroyed 7 combat bots 10023 | -8/Garrison | Discovered new exit (range 6) 10222 | -8/Garrison | Discovered exit to Factory (range 10) 10489 | -8/Garrison | Entered Materials 10489 | -8/Materials | Accompanied by 3 allies 12372 | -8/Materials | Repaired Hrd. Medium Armor Plating 12405 | -8/Materials | Repaired Imp. Treads 12564 | -8/Materials | Identified exit to Garrison 12586 | -8/Materials | Entered Garrison 12586 | -8/Garrison | Accompanied by 1 ally 12602 | -8/Garrison | Triggered checkpoint 13036 | -8/Garrison | Triggered checkpoint 13154 | -8/Garrison | Expanded RIF knowledge: Signal Jamming 13220 | -8/Garrison | Garrison Relay disabled 13240 | -8/Garrison | Triggered checkpoint 13275 | -8/Garrison | Lost 3 allies 13315 | -8/Garrison | Garrison Relay disabled 13382 | -8/Garrison | Triggered checkpoint 13396 | -8/Garrison | Triggered checkpoint 13472 | -8/Garrison | Lost 7 allies 13614 | -8/Garrison | Discovered exit to Factory (range 11) 13661 | -8/Garrison | Triggered checkpoint 13696 | -8/Garrison | Garrison Relay disabled 13902 | -8/Garrison | Triggered checkpoint 13939 | -8/Garrison | Discovered exit to Factory (range 12) 13973 | -8/Garrison | Lost 3 allies 14012 | -8/Garrison | Triggered checkpoint 14077 | -8/Garrison | Garrison Relay disabled 14263 | -8/Garrison | Discovered exit to Factory (range 13) 14293 | -8/Garrison | Core integrity fell below 20% 14344 | -8/Garrison | Triggered checkpoint 14360 | -8/Garrison | Garrison Relay disabled 14407 | -8/Garrison | Garrison Relay disabled 14499 | -8/Garrison | Entered Factory 14499 | -7/Factory | Evolved 2 slots: Propulsion x1, Utility x1 14501 | -7/Factory | FarCom data flow suspended 14778 | -7/Factory | Sucked down chute 14778 | -7/Factory | Entered Waste 14779 | -7/Waste | Met a frightened Derelict 14784 | -7/Waste | Spotted C-40 Crusher 14802 | -7/Waste | Spotted C-40 Crusher 14841 | -7/Waste | Spotted C-40 Crusher 14859 | -7/Waste | Spotted C-40 Crusher 14863 | -7/Waste | Spotted C-40 Crusher 14903 | -7/Waste | Spotted C-40 Crusher 14936 | -7/Waste | Discovered new exit (range 10) 15030 | -7/Waste | Destroyed C-40 Crusher 15092 | -7/Waste | Destroyed C-40 Crusher 15120 | -7/Waste | Destroyed C-40 Crusher 15149 | -7/Waste | Destroyed C-40 Crusher 15195 | -7/Waste | Destroyed C-40 Crusher 15312 | -7/Waste | Destroyed C-40 Crusher 15363 | -7/Waste | Warlord forces began an assault 15591 | -7/Waste | Entered Factory 15591 | -7/Factory | Accompanied by 16 allies 15689 | -7/Factory | Lost 7 allies 16104 | -7/Factory | Identified exit to Garrison 16108 | -7/Factory | Entered Garrison 16108 | -7/Garrison | Accompanied by 3 allies 16170 | -7/Garrison | Triggered checkpoint 16211 | -7/Garrison | Discovered new exit (range 37) 16211 | -7/Garrison | Discovered new exit (range 75) 16211 | -7/Garrison | Discovered new exit (range 53) 16224 | -7/Garrison | Garrison Relay disabled 16304 | -7/Garrison | Triggered checkpoint 16314 | -7/Garrison | Triggered checkpoint 16397 | -7/Garrison | Garrison Relay disabled 16469 | -7/Garrison | Expanded RIF knowledge: Autooverride 16512 | -7/Garrison | Entered Factory 16512 | -7/Factory | Accompanied by 2 allies 16777 | -7/Factory | Found Prototype Launcher 16777 | -7/Factory | Identified Rocket Array 16787 | -7/Factory | Found Rocket Array 16961 | -7/Factory | Repaired Phase Cannon? 17140 | -7/Factory | Identified exit to Garrison 17179 | -7/Factory | P-70 Sage assimilated allied ZV-RYE(m) 17450 | -7/Factory | Garrison activated, responded to threat 17510 | -7/Factory | Fabricated M-13 Machinist (x1) 17554 | -7/Factory | Entered Garrison 17554 | -7/Garrison | Accompanied by 2 allies 17560 | -7/Garrison | Triggered checkpoint 17592 | -7/Garrison | Discovered new exit (range 5) 17650 | -7/Garrison | Triggered checkpoint 17676 | -7/Garrison | Discovered new exit (range 52) 17676 | -7/Garrison | Discovered new exit (range 30) 17676 | -7/Garrison | Discovered new exit (range 60) 17676 | -7/Garrison | Discovered new exit (range 33) 17698 | -7/Garrison | Garrison Relay disabled 17783 | -7/Garrison | Triggered checkpoint 17783 | -7/Garrison | Triggered checkpoint 17817 | -7/Garrison | Triggered checkpoint 17826 | -7/Garrison | Triggered checkpoint 17856 | -7/Garrison | Destroyed 12 combat bots 17949 | -7/Garrison | Expanded RIF knowledge: Watcher Feeds 18160 | -7/Garrison | Triggered checkpoint 18240 | -7/Garrison | Build established: Botlord-Mutant 18277 | -7/Garrison | Garrison Relay disabled 18645 | -7/Garrison | Spotted B-75 Beast 18706 | -7/Garrison | Destroyed B-75 Beast 18970 | -7/Garrison | Entered Factory 18970 | -7/Factory | Accompanied by 5 allies 19456 | -7/Factory | Repaired Phase Cannon? 19496 | -7/Factory | Identified exit to Garrison 19505 | -7/Factory | Entered Garrison 19505 | -7/Garrison | Accompanied by 8 allies 19546 | -7/Garrison | Found Quantum Capacitor 19603 | -7/Garrison | Triggered checkpoint 19649 | -7/Garrison | Triggered checkpoint 19699 | -7/Garrison | Garrison Relay disabled 19713 | -7/Garrison | Lost 7 allies 19811 | -7/Garrison | Triggered checkpoint 19859 | -7/Garrison | Expanded RIF knowledge: Hotswap 19935 | -7/Garrison | Discovered new exit (range 10) 19957 | -7/Garrison | H-XX Assembler disabled 20179 | -7/Garrison | Triggered checkpoint 20241 | -7/Garrison | Garrison Relay disabled 20272 | -7/Garrison | Discovered new exit (range 3) 20364 | -7/Garrison | System corruption reached 10% 20494 | -7/Garrison | Garrison Relay disabled 20645 | -7/Garrison | Triggered checkpoint 20691 | -7/Garrison | Triggered checkpoint 20899 | -7/Garrison | Garrison Relay disabled 20931 | -7/Garrison | Discovered new exit (range 10) 20951 | -7/Garrison | Entered Factory 20951 | -6/Factory | Accompanied by 3 allies 20951 | -6/Factory | Evolved 2 slots: Power x1, Utility x1 20952 | -6/Factory | Identified exit to Extension 21245 | -6/Factory | Fabricated M-13 Machinist (x1) 21471 | -6/Factory | Discovered new exit (range 12) 22017 | -6/Factory | P-60 Hacker assimilated allied Guardian 4h 22218 | -6/Factory | Sucked down chute 22218 | -6/Factory | Entered Waste 22230 | -6/Waste | Spotted C-40 Crusher 22260 | -6/Waste | Spotted C-40 Crusher 22263 | -6/Waste | Spotted C-40 Crusher 22268 | -6/Waste | Spotted C-40 Crusher 22273 | -6/Waste | 3 allies followed down the chute 22310 | -6/Waste | Spotted C-40 Crusher 22314 | -6/Waste | Spotted C-40 Crusher 22321 | -6/Waste | Discovered new exit (range 15) 22372 | -6/Waste | Warlord forces began an assault 22575 | -6/Waste | Build established: Bothacker-Mutant 23032 | -6/Waste | Entered Factory 23032 | -6/Factory | Accompanied by 19 allies 23324 | -6/Factory | Garrison activated, responded to threat 23372 | -6/Factory | Lost 14 allies 23591 | -6/Factory | Repaired Imp. Heavy Treads 23676 | -6/Factory | Repaired Imp. Heavy Armor Plating 23816 | -6/Factory | Repaired Imp. Heavy Treads 23985 | -6/Factory | Identified exit to Garrison 23985 | -6/Factory | Entered Garrison 24061 | -6/Garrison | Triggered checkpoint 24130 | -6/Garrison | Expanded RIF knowledge: Zone Cloak 24180 | -6/Garrison | Garrison Relay disabled 24365 | -6/Garrison | Triggered checkpoint 24411 | -6/Garrison | Triggered checkpoint 24440 | -6/Garrison | Build established: Botlord-Mutant 24442 | -6/Garrison | Lost 4 allies 24495 | -6/Garrison | Expanded RIF knowledge: Threat Obfuscation 24513 | -6/Garrison | Triggered checkpoint 24551 | -6/Garrison | Garrison Relay disabled 24564 | -6/Garrison | Learned Factory security intel 24629 | -6/Garrison | Discovered new exit (range 13) 24705 | -6/Garrison | Triggered checkpoint 24771 | -6/Garrison | Triggered checkpoint 24795 | -6/Garrison | Discovered new exit (range 11) 24865 | -6/Garrison | Triggered checkpoint 24902 | -6/Garrison | Garrison Relay disabled 25093 | -6/Garrison | Spotted B-75 Beast 25114 | -6/Garrison | Garrison Relay disabled 25152 | -6/Garrison | Discovered new exit (range 13) 25179 | -6/Garrison | Rewired Striker 25183 | -6/Garrison | Rewired Striker 25216 | -6/Garrison | Entered Factory 25216 | -5/Factory | Accompanied by 2 allies 25216 | -5/Factory | Evolved 2 slots: Utility x2 25219 | -5/Factory | Spotted B-75 Beast 25237 | -5/Factory | Allies destroyed B-75 Beast 25345 | -5/Factory | Identified exit to Garrison 25425 | -5/Factory | Entered Garrison 25425 | -5/Garrison | Accompanied by 1 ally 25445 | -5/Garrison | Triggered checkpoint 25471 | -5/Garrison | Garrison Relay disabled 25595 | -5/Garrison | Triggered checkpoint 25601 | -5/Garrison | Spotted B-75 Beast 25609 | -5/Garrison | Triggered checkpoint 25654 | -5/Garrison | Destroyed 7 combat bots 25745 | -5/Garrison | Triggered checkpoint 25854 | -5/Garrison | Discovered new exit (range 8) 25883 | -5/Garrison | Triggered checkpoint 25920 | -5/Garrison | Garrison Relay disabled 26010 | -5/Garrison | Discovered new exit (range 59) 26010 | -5/Garrison | Discovered new exit (range 37) 26010 | -5/Garrison | Discovered new exit (range 16) 26166 | -5/Garrison | Expanded RIF knowledge: Zone Cloak 26203 | -5/Garrison | P-70 Sage assimilated allied Sentinel 6a 26302 | -5/Garrison | Triggered checkpoint 26329 | -5/Garrison | Garrison Relay disabled 26644 | -5/Garrison | Entered Factory 26644 | -4/Factory | Evolved 2 slots: Utility x2 26843 | -4/Factory | Garrison activated, responded to threat 26891 | -4/Factory | Discovered new exit (range 32) 26941 | -4/Factory | Identified exit to Upper Caves 26941 | -4/Factory | Identified exit to Armory 27166 | -4/Factory | Lost 3 allies 27543 | -4/Factory | Identified exit to Garrison 27543 | -4/Factory | Entered Garrison 27543 | -4/Garrison | Accompanied by 1 ally 27543 | -4/Garrison | Spotted B-75 Beast 27565 | -4/Garrison | Destroyed B-75 Beast 27601 | -4/Garrison | Rewired B-90 Cyclops 27853 | -4/Garrison | Triggered checkpoint 27889 | -4/Garrison | Garrison Relay disabled 27916 | -4/Garrison | Discovered new exit (range 47) 27916 | -4/Garrison | Discovered new exit (range 78) 27916 | -4/Garrison | Discovered new exit (range 63) 27966 | -4/Garrison | Spotted B-86 Titan 27979 | -4/Garrison | Triggered checkpoint 28029 | -4/Garrison | Destroyed B-86 Titan 28073 | -4/Garrison | Found Hvy. Reflective Plating 28080 | -4/Garrison | Lost 4 parts (1p2u1w) 28099 | -4/Garrison | Triggered checkpoint 28131 | -4/Garrison | Triggered checkpoint 28189 | -4/Garrison | Garrison Relay disabled 28219 | -4/Garrison | Triggered checkpoint 28245 | -4/Garrison | Triggered checkpoint 28451 | -4/Garrison | Triggered checkpoint 28531 | -4/Garrison | Triggered checkpoint 28565 | -4/Garrison | Garrison Relay disabled 28636 | -4/Garrison | P-70 Sage assimilated allied Assassin 7d 28747 | -4/Garrison | Expanded RIF knowledge: Robot Detection 28798 | -4/Garrison | Spotted Executioner 28817 | -4/Garrison | Allies destroyed Executioner 29021 | -4/Garrison | Entered Factory 29021 | -4/Factory | Accompanied by 5 allies 29077 | -4/Factory | Found Quantum Capacitor 29180 | -4/Factory | Discovered exit to Upper Caves (range 15) 29262 | -4/Factory | Lost 3 allies 29459 | -4/Factory | Identified exit to Garrison 29459 | -4/Factory | Entered Garrison 29459 | -4/Garrison | Accompanied by 4 allies 29609 | -4/Garrison | Triggered checkpoint 29650 | -4/Garrison | Garrison Relay disabled 29903 | -4/Garrison | Triggered checkpoint 29903 | -4/Garrison | Spotted B-86 Titan 29914 | -4/Garrison | Triggered checkpoint 29943 | -4/Garrison | Allies destroyed B-86 Titan 29943 | -4/Garrison | Triggered checkpoint 29991 | -4/Garrison | Lost 7 allies 30000 | -4/Garrison | P-70 Sage assimilated allied G-67 Veteran 30089 | -4/Garrison | Triggered checkpoint 30109 | -4/Garrison | Garrison Relay disabled 30163 | -4/Garrison | Spotted Striker 30163 | -4/Garrison | Spotted Striker 30172 | -4/Garrison | Destroyed Striker 30190 | -4/Garrison | Destroyed Striker 30230 | -4/Garrison | Discovered new exit (range 5) 30575 | -4/Garrison | Triggered checkpoint 30734 | -4/Garrison | Expanded RIF knowledge: Coupler Efficiency 30786 | -4/Garrison | Discovered new exit (range 12) 31213 | -4/Garrison | Triggered checkpoint 31245 | -4/Garrison | Garrison Relay disabled 31382 | -4/Garrison | Discovered new exit (range 10) 31409 | -4/Garrison | Entered Research 31409 | -3/Research | Accompanied by 1 ally 31409 | -3/Research | Evolved 2 slots: Propulsion x2 31592 | -3/Research | Fabricated M-13 Machinist (x1) 31878 | -3/Research | Lost 4 allies 31977 | -3/Research | Identified exit to Garrison 32029 | -3/Research | Lost 3 allies 32188 | -3/Research | Identified exit to Testing 32410 | -3/Research | Entered Garrison 32410 | -3/Garrison | Accompanied by 1 ally 32419 | -3/Garrison | Phase Generator disabled 32434 | -3/Garrison | Met a derelict Sapper fleeing the area 32689 | -3/Garrison | Garrison Relay disabled 32694 | -3/Garrison | Triggered checkpoint 32806 | -3/Garrison | Spotted B-86 Titan 32820 | -3/Garrison | Triggered checkpoint 32822 | -3/Garrison | Triggered checkpoint 32822 | -3/Garrison | P-80 Master assimilated allied Warden 8h 32823 | -3/Garrison | P-80 Master assimilated allied Warden 8i 32848 | -3/Garrison | Triggered checkpoint 32858 | -3/Garrison | P-80 Master assimilated allied Swordsman 8b 32860 | -3/Garrison | P-80 Master assimilated allied Warden 8g 32869 | -3/Garrison | System corruption reached 10% 32902 | -3/Garrison | Lost 9 allies 32933 | -3/Garrison | Core integrity fell below 50% 32938 | -3/Garrison | Lost 27 parts (2p4n14u7w) 32973 | -3/Garrison | Discovered new exit (range 12) 32977 | -3/Garrison | Expanded RIF knowledge: Autoassimilate 32982 | -3/Garrison | Core integrity fell below 20% 32987 | -3/Garrison | Entered Research 32987 | -2/Research | Evolved 2 slots: Power x1, Utility x1 33126 | -2/Research | Discovered new exit (range 12) 33137 | -2/Research | Entered Access 33137 | -1/Access | Evolved 2 slots: Propulsion x2 33206 | -1/Access | Build established: Mutant 33391 | -1/Access | Found Unknown Launcher 33391 | -1/Access | Identified Fusion Bomb Launcher 33600 | -1/Access | Energy Cycler disabled 33714 | -1/Access | Garrison activated, responded to threat 33724 | -1/Access | Lost 3 parts (3n) 33725 | -1/Access | System corruption reached 10% 33727 | -1/Access | Core integrity fell below 50% 33739 | -1/Access | Destroyed 8 combat bots 33764 | -1/Access | Lost 5 parts (3n1u1w) 33790 | -1/Access | Core integrity fell below 20% 33802 | -1/Access | Spotted B-99 Colossus 33811 | -1/Access | Destroyed by B-99 Colossus with Multirail Last Messages --------------- 33752_ Acquired Field Propulsion Array. 33755_ System corrupted: Energy discharge (-16). 33755_ Acquired Field Propulsion Array. 33756_ Drone sends a signal. 33776_ System corrupted: Matter fused (-9). 33787_ Detecting nearby Garrison Access. 33788_ Field Propulsion Array destroyed. 33799_ H-81 Overseer calls for reinforcements. 33799_ ALERT: Suspicious intruders detected, dispatching Cutter reinforcements to area. 33802_ Field Propulsion Array destroyed. 33802_ Knocked back. 33803_ PXNST&07ICMWD3UQY/G 33804_ Slug penetrates Wall. 33811_ Imp. Target Analyzer destroyed. 33811_ Penetrated by Slug. Map ----- +----------------------------------------------------+ | ?????????????????????????????????????????????????? | | ?????????????????????????????????????????????????? | | ?????????????????????????????????????????????????? | | ?????????????????????????????????????????????????? | | ?????????????????????????????????????????????????? | | ?????????????????????????????????????????????????? | | ?????????????????????????????????????????????????? | | ?????????????????????????????????????????????????? | | ?????????????????????????????????????????????????? | | ?????????????????????????????????????????????????? | | ?????????????????????????????????????????????????? | | ?????????????????????????????????????????????????? | | ?????????????????? ??????????????????????????????? | | ?????????????????" ?????????????????????????????? | | ?????????????? """ ?????????????????????????????? | | ?????????????? o????????????????????????????? | | ????????????? ###########?????????????????? | | ????????????? #?????????????????? | | ???????????? #?????????????????? | | ???????????? #?????????????????? | | ???????????? #???????###???????? | | ????????????? #??????# #???????? | | ???????????????# ##+##### #???????? | | ???????????????# A #???????? | | ???????????????# % BB/???????? | | ???????????????# @ BB#???????? | | ???????????????# "" """ #???????? | | ???????????????# ""F""" ####???## | | ???????????????# """"" #??? | | ???????????????# % g #?? | | ???????????????# #?? | | ???????????????# * % #?? | | ???????????????###+########### #?? | | ?????????????????????????????# #?? | | ?????????????????????????????########## ###/## | | ????????????????????????????????????#"" % | | ????????????????????????????????????#"T | | ????????????????????????????????????### | | ??????????????????????????????????????# % | | ??????????????????????????????????????# | | ??????????????????????????????????????#########+#" | | ??????????????????????????????????????????????? # | | ????????????????????????????????????????????? # | | ???????????????????????????????????????????" ?# | | ????????????????????????????????????????? """ ?# | | ???????????????????????????????????????? """ ??# | | ???????????????????????????????????????#! " ??# | | ???????????????????????????????????????#? ???# | | ???????????????????????????????????????? ???# | | ????????????????????????????????????????#####????# | +----------------------------------------------------+ Best States ------------- Heat Dissipation 88 Coolant Potential 100 Energy Generation 41 Energy Capacity 1025 Matter Stores 300 Matter Capacity 300 Sight Range 16 Terrain Scan Range 24 Terrain Scan Density 10 Cloak Strength 5 Base Temperature (-) 100 EM Shielding 2 Armor Coverage 1650 Resistance: KI 25 Resistance: TH 25 Evasion (%) 62 Target Analysis 6 Core Analysis 6 Recoil Reduction 8 Offensive Hacking 10 Defensive Hacking 11 Relay Coupler Types 6 Relay Coupler Value 145 Authchip Count 2 Item Schematics ----------------- None Robot Schematics ------------------ M-13 Machinist | -10/Materials | Hacked Fabricated ------------ M-13 Machinist | x1 | -7/Factory M-13 Machinist | x1 | -6/Factory M-13 Machinist | x1 | -3/Research | Authchip Alien Tech Used ----------------- None Achievements -------------- None Challenges ------------ None Game ------ Seed ResetMissileCannon Manual? 0 Play Time 03:27:35 Cumulative 567.7 hours Start 2025.01.08 @ 09:34:18 End 2025.01.08 @ 22:10:18 Sessions 7 Manual Loads 0 Difficulty Rogue Special Mode None Game No. 325 Rogue 325 Adventurer 0 Explorer 0 Win Type - Total 44 Types 29/4/5/1/1/0/2/1/1 Lore% 88 Gallery% 86 Achievement% 86 Wizard Run 0 Options --------- Layout 0 ASCII 0 Keyboard 1 Movement Numpad Keybinds 0 Fullscreen 2 Font 18/SmallcapsGlow Map View 76x50 Zoom Use 0% Tactical HUD 1 Map Filters NONE Filters NONE Steam 1 RUN: 02db8201-d4a0-4a58-b860-b7ac532c6966